Cogmind - Beta 15 --- EXPLORER MODE // 2025.05.13 @ 20:39:29 // Winter2019/RPGLIKE Player: H3-RMN Result: Destroyed by Y-72 Warden with Quantum Rifle Performance ------------- Evolutions (8) 4000 Regions Visited (31) 6200 Robots Destroyed (844) 4220 Value Destroyed (48620) 48620 Prototype IDs (201) 4020 Alien Tech Used (8) 1600 Bonus (16101) 16101 TOTAL SCORE: 84761 Bonus ------- High Alert Combat Kills 5089 Follower Combat Kills 4331 Awakened Behemoth Slayer 1000 Entered Garrisons 200 Used RIF Installer 500 Network Hubs Disabled 800 Registered with UFD 300 Met Optimus in HQ 500 Met Imprinter 300 Met Zhirov 300 Built Enhanced Grunts 300 A7 Reached Mainframe 300 Met R17 at Cetus 500 Met R17 at Research 2000 Met Optimus at Protoforge 1000 Friendly Fire -1319 Cogmind --------- Core Integrity 0/1150 Matter 220/300 Energy 884/920 System Corruption 1% Temperature Warm (152) Movement Treading (147) Location -2/Protoforge Parts ------- > --- POWER (4) -------- Light Antimatter Reactor Improved Quantum Reactor Improved Quantum Reactor Improved Quantum Reactor > --- PROPULSION (4) --- Experimental Biometal Heavy Treads Enhanced Armored Heavy Treads > --- UTILITY (14) ----- Scrap Suit Coolant Network Experimental Signal Interpreter Partition Strike Chip Experimental Core Analyzer Experimental Core Analyzer Advanced Weapon Cycler Experimental Phase Shifter Centrium Heavy Armor Plating Experimental EM Shield AEGIS Remote Shield > --- WEAPON (4) ------- Overtuned Nova Cannon Overtuned Nova Cannon Helical Railgun Helical Railgun > --- INVENTORY (8) ---- Experimental Matter Compressor (500) Long-range Terrain Scanner Heavy Servo Lattice Experimental Transmission Jammer Concept Antimissile System Overtuned Phase Cannon Supercharged Sigix Terminator (1) Peak State ------------ > --- POWER ------------ Light Antimatter Reactor Improved Quantum Reactor Improved Quantum Reactor Improved Quantum Reactor > --- PROPULSION ------- Experimental Biometal Heavy Treads Enhanced Armored Heavy Treads > --- UTILITY ---------- Scrap Suit Coolant Network Experimental Signal Interpreter Partition Strike Chip Experimental Core Analyzer Advanced Weapon Cycler Experimental Transmission Jammer Experimental Phase Shifter Centrium Heavy Armor Plating Experimental EM Shield AEGIS Remote Shield > --- WEAPON ----------- Overtuned Nova Cannon Overtuned Nova Cannon Helical Railgun Helical Railgun > --- INVENTORY -------- Experimental Matter Compressor Long-range Terrain Scanner Experimental Core Analyzer Heavy Servo Lattice Concept Antimissile System Overtuned Phase Cannon Supercharged Sigix Terminator [Rating: 233] Favorites ----------- Power Improved Quantum Reactor Engine Cooled Ion Engine Power Core Hybrid Fission Core Reactor Improved Quantum Reactor Propulsion Improved Flight Unit Treads Enhanced Armored Heavy Treads Leg Carbon-fiber Leg Wheel Overtuned Huge Scrapsphere Hover Unit Combat Gravmag System Flight Unit Improved Flight Unit Utility Experimental Cooling System Device Experimental Cooling System Storage Improved Matter Compressor Processor Partition Strike Chip Hackware Hacking Suite Protection Centrium Heavy Armor Plating Weapon Overtuned Phase Cannon Energy Gun Improved EM Shotgun Energy Cannon Overtuned Phase Cannon Ballistic Gun Overtuned Barrage Gun Ballistic Cannon Overtuned Bore Cannon Launcher Advanced EMP Blaster Special Weapon CPS Tube Impact Weapon Core Stripper Slashing Weapon Nanosword Piercing Weapon CR-A16's Behemoth Slayer Special Melee Weapon Improved Datajack Build | -11 -10 -10 -9 -9 -9 -9 -6 -6 -6 -6 -5 -5 -5 -5 -5 -5 -5 -4 -4 -4 -4 -4 -4 -4 -4 -3 -3 -3 -2 -2 -2 ------- Run | Yrd Mat Min Mat Sto Rec Scr Fac Low Low Zio Pro Fac Was Fac Upp Upp Zhi Pro Fac Was Fac Ext Cet Arc Hub Res Tes Gar Res Qua Frg Slots Evolved 21 | 2 . . 5 3 . 1 3 . . . 1 2 . . . . . . . . 1 . . . . 1 . . 1 . 1 Power 2 | . . . . 1 . . . . . . . . . . . . . . . . . . . . . . . . . . 1 Propulsion 3 | 1 . . 2 . . . . . . . . . . . . . . . . . . . . . . . . . . . . Utility 13 | 1 . . 2 . . 1 3 . . . 1 2 . . . . . . . . 1 . . . . 1 . . 1 . . Weapon 3 | . . . 1 2 . . . . . . . . . . . . . . . . . . . . . . . . . . . Parts Attached 223 | 5 1 . 16 9 . 6 37 2 . 3 1 22 2 13 5 . 3 . 9 . 14 . 3 . 2 12 13 . 10 12 23 Power 22 | . 1 . 1 3 . . 3 1 . . . 1 1 . 1 . 1 . 1 . 2 . . . . . . . 2 2 2 Engine 5 | . 1 . 1 3 . . . . . . . . . . . . . . . . . . . . . . . . . . . Core 2 | . . . . . . . 1 1 . . . . . . . . . . . . . . . . . . . . . . . Reactor 15 | . . . . . . . 2 . . . . 1 1 . 1 . 1 . 1 . 2 . . . . . . . 2 2 2 Propulsion 42 | 2 . . 4 4 . . 13 . . . . 1 . 3 1 . 1 . 1 . 2 . 1 . . 1 2 . 1 1 4 Treads 8 | 2 . . . . . . . . . . . . . 1 . . . . 1 . 1 . 1 . . . . . 1 1 . Leg 12 | . . . 4 . . . 1 . . . . 1 . . 1 . . . . . 1 . . . . . 2 . . . 2 Wheel 5 | . . . . . . . 4 . . . . . . . . . . . . . . . . . . 1 . . . . . Hover 10 | . . . . . . . 8 . . . . . . . . . 1 . . . . . . . . . . . . . 1 Flight 7 | . . . . 4 . . . . . . . . . 2 . . . . . . . . . . . . . . . . 1 Utility 87 | 2 . . 7 . . 2 12 1 . 1 1 9 1 3 1 . 1 . 5 . 8 . 1 . 1 9 6 . 3 3 10 Device 46 | . . . 1 . . 2 6 . . 1 . 7 1 3 . . 1 . 4 . 4 . . . . 3 3 . 3 1 6 Storage 4 | . . . . . . . 1 . . . . . . . . . . . . . 1 . . . . 1 1 . . . . Processor 18 | . . . 2 . . . 3 . . . 1 . . . 1 . . . . . 2 . . . 1 4 . . . . 4 Hackware 7 | . . . . . . . 1 . . . . 1 . . . . . . 1 . 1 . . . . 1 2 . . . . Protection 12 | 2 . . 4 . . . 1 1 . . . 1 . . . . . . . . . . 1 . . . . . . 2 . Artifact . | . . . . . . . . . . . . . . . . . . . . . . . . . . . . . . . . Weapon 72 | 1 . . 4 2 . 4 9 . . 2 . 11 . 7 2 . . . 2 . 2 . 1 . 1 2 5 . 4 6 7 Energy Gun 14 | 1 . . 1 2 . . 2 . . 1 . . . 2 . . . . . . . . 1 . . . 1 . . 1 2 Energy Cannon 13 | . . . 1 . . 3 2 . . . . 1 . . 1 . . . 1 . 1 . . . 1 . . . 1 . 1 Ballistic Gun 10 | . . . . . . . 1 . . . . 3 . . . . . . . . 1 . . . . . 1 . . 1 3 Ballistic Cannon 9 | . . . . . . . 1 . . . . 1 . 2 1 . . . . . . . . . . 1 2 . 1 . . Launcher 12 | . . . 2 . . . . . . . . 2 . 1 . . . . 1 . . . . . . 1 1 . 1 2 1 Special Weapon 6 | . . . . . . . 1 . . . . 1 . 2 . . . . . . . . . . . . . . 1 1 . Impact Weapon 1 | . . . . . . . . . . . . . . . . . . . . . . . . . . . . . . 1 . Slashing Weapon 2 | . . . . . . . 1 . . . . 1 . . . . . . . . . . . . . . . . . . . Piercing Weapon 3 | . . . . . . . . . . 1 . 2 . . . . . . . . . . . . . . . . . . . Special Melee Weapon 2 | . . . . . . 1 1 . . . . . . . . . . . . . . . . . . . . . . . . Unidentified Prototypes 100 | . . . 1 . . . 8 1 . 2 . 13 1 6 . . 4 . 6 . 8 . 3 . 2 7 13 . 2 10 13 Corrupted Parts 1 | . . . . . . . . . . . . 1 . . . . . . . . . . . . . . . . . . . System Corruption 9 | . . . . . . . . . . . . 9 . . . . . . . . . . . . . . . . . . . Parts Lost . | . . . . . . . . . . . . . . . . . . . . . . . . . . . . . . . . Power . | . . . . . . . . . . . . . . . . . . . . . . . . . . . . . . . . Propulsion . | . . . . . . . . . . . . . . . . . . . . . . . . . . . . . . . . Utility . | . . . . . . . . . . . . . . . . . . . . . . . . . . . . . . . . Weapon . | . . . . . . . . . . . . . . . . . . . . . . . . . . . . . . . . Highest Loss Streak . | . . . . . . . . . . . . . . . . . . . . . . . . . . . . . . . . To Critical Strikes . | . . . . . . . . . . . . . . . . . . . . . . . . . . . . . . . . Average Backups 4 | . . . 1 2 2 2 3 4 4 4 4 4 4 4 4 6 6 6 6 5 5 6 6 6 6 5 5 5 5 5 5 Power . | . . . . . . . . . . . . . . . . . . . . . . . . . . . . . . . . Propulsion . | . . . . . . . . . . . . . . . . . . . . . . . . . . . . . . . . Utility 2 | . . . . . 1 . 1 2 3 3 3 3 3 2 2 2 2 2 2 3 2 3 3 3 3 2 1 1 1 2 3 Weapon 1 | . . . . 1 1 1 1 . . . . . . 1 2 4 3 3 2 1 1 2 2 2 2 2 3 3 2 1 1 Tool/Special . | . . . . . . . . . . . . . . . . . . . . . . . . . . . . . . . . Unused Backups 12 | . 1 . 1 1 1 1 2 . . . . . . 1 . . . . . . . . . . . . 1 . 1 1 1 Power . | . . . . . . . . . . . . . . . . . . . . . . . . . . . . . . . . Propulsion . | . . . . . . . . . . . . . . . . . . . . . . . . . . . . . . . . Utility 5 | . . . . . 1 1 1 . . . . . . . . . . . . . . . . . . . . . 1 . 1 Weapon 6 | . 1 . 1 1 . . 1 . . . . . . 1 . . . . . . . . . . . . 1 . . . . Tool/Special 1 | . . . . . . . . . . . . . . . . . . . . . . . . . . . . . . 1 . Average Slot Usage (%) 86 | . 96 100 89 96 100 95 91 86 89 83 84 85 86 83 80 81 78 81 80 80 81 82 82 82 81 82 82 83 83 82 79 Engine 3 | . 12 16 10 14 14 12 4 . . . . . . . . . . . . . . . . . . . . . . . . Core 1 | . . . . . . . . 6 10 10 10 4 4 4 4 4 4 4 4 4 1 . . . . . . . . . . Reactor 7 | . . . . . . . 5 5 5 5 5 8 9 9 9 9 9 9 8 8 11 13 13 13 13 12 12 12 12 11 12 Treads 4 | . 33 33 1 . . . . . . . . . . 2 3 4 4 4 4 4 3 4 4 4 4 4 4 4 6 8 7 Leg 1 | . . . 20 19 . . . . . . . . . . . . . . . . . . . . . . . . . . . Wheel 3 | . . . . . . . 1 15 15 15 15 13 13 8 3 4 3 4 3 4 4 4 4 4 4 4 4 4 1 . . Hover 1 | . . . . . . . 14 . . . . . . . . . . . . . . . . . . . . . . . . Flight 3 | . . . . 7 28 27 5 . . . . . . . . . . . . . . . . . . . . . . . . Device 21 | . . . 2 7 7 12 19 26 26 22 20 23 27 27 27 27 24 27 26 27 26 26 26 26 25 28 28 29 31 31 27 Processor 9 | . . . 9 7 7 3 4 10 10 6 9 9 9 9 8 9 9 9 9 9 11 13 13 13 13 12 12 12 12 12 12 Protection 7 | . 33 33 23 14 14 9 4 . . 4 5 4 4 4 4 4 4 4 4 4 4 4 4 4 4 3 4 4 4 3 3 Energy Gun 6 | . 16 16 10 16 21 14 3 10 10 9 10 9 9 12 11 9 9 9 5 4 1 . . . . . . . . . . Energy Cannon 8 | . . . 3 7 7 11 16 5 5 2 . . . . 1 4 4 4 7 9 11 13 12 13 12 12 12 12 12 8 7 Ballistic Gun 1 | . . . . . . . . 5 5 4 5 2 4 1 . . . . . . . . . . . . . . . . 4 Ballistic Cannon 1 | . . . . . . . 1 . . . . . . 1 4 4 4 4 4 4 3 . 3 4 3 3 3 3 3 3 1 Peak Build Rating 233 | 5 8 8 27 37 37 56 112 93 93 108 105 136 138 160 160 157 158 158 160 156 176 176 178 176 181 181 191 189 209 224 233 Average Rating 128 | 3 6 8 19 33 36 45 89 90 93 97 102 123 135 145 158 157 151 158 155 155 165 172 175 176 173 174 176 181 198 207 220 On Entrance 119 | . 5 8 8 27 36 37 55 90 93 93 100 101 136 134 157 157 157 158 158 145 156 176 172 176 176 173 175 178 178 209 209 Naked Turns . | . . . . . . . . . . . . . . . . . . . . . . . . . . . . . . . . Heaviest Build 150 | 8 13 10 33 45 45 56 93 61 61 82 77 88 96 111 109 104 104 104 111 111 124 116 124 124 127 124 129 130 140 142 150 Greatest Support 180 | 45 45 45 65 65 25 25 68 51 51 51 51 51 51 95 105 35 95 35 95 35 95 35 95 35 35 35 95 35 180 180 180 Greatest Overweight (x) 6 | . . . . 4 1 2 4 1 1 1 1 2 1 3 3 2 2 2 3 3 3 3 3 6 3 3 3 3 3 1 1 Average Overweight (x) 1 | . . . . . 1 1 1 . 1 . 1 1 1 1 2 2 1 2 2 2 2 3 2 5 3 2 2 3 1 . . Largest Inventory Capacity 8 | 2 2 2 5 5 5 5 6 6 6 6 6 6 6 6 7 7 7 7 7 7 7 7 7 7 7 7 7 7 8 8 8 Average Capacity 6 | 2 2 2 3 5 5 5 5 6 6 6 6 6 6 6 6 7 7 7 7 7 7 7 7 7 7 7 7 7 7 8 8 Most Carried 8 | 1 2 1 5 5 5 5 6 6 6 6 6 6 6 6 7 7 7 7 7 7 7 7 7 7 7 7 7 7 8 8 8 Average Carried 5 | . 1 1 2 4 4 4 4 6 6 5 5 5 5 5 6 7 6 7 6 6 6 7 7 7 7 6 6 7 7 7 7 Final Capacity 8 | 2 2 2 5 5 5 5 6 6 6 6 6 6 6 6 7 7 7 7 7 7 7 7 7 7 7 7 7 7 8 8 8 Final Carried 8 | 1 1 1 5 5 5 5 6 6 6 6 6 5 6 6 7 7 7 7 7 7 7 7 7 7 7 7 7 7 8 8 8 Class Distribution -------------------- 49% | Wizard-Scrapper 18% | Wizard-Tank 12% | Hacker-Tank 10% | Hacker-Mutant 4% | Wizard-Skirmisher Dominant Class ---------------- Hacker-Mutant | -10/Materials Hacker-Mutant | -10/Mines Hacker-Mutant | -9/Materials Hacker-Tank | -9/Storage Hacker-Tank | -9/Recycling Hacker-Tank | -9/Scraptown Wizard-Skirmisher | -6/Factory Wizard-Scrapper | -6/Lower Caves Wizard-Scrapper | -6/Lower Caves Wizard-Scrapper | -6/Zion Wizard-Scrapper | -5/Proximity Caves Wizard-Scrapper | -5/Factory Wizard-Scrapper | -5/Waste Wizard-Scrapper | -5/Factory Wizard-Scrapper | -5/Upper Caves Wizard-Scrapper | -5/Upper Caves Wizard-Scrapper | -5/Zhirov Wizard-Scrapper | -4/Proximity Caves Wizard-Scrapper | -4/Factory Wizard-Scrapper | -4/Waste Wizard-Scrapper | -4/Factory Wizard-Scrapper | -4/Extension Wizard-Scrapper | -4/Cetus Wizard-Scrapper | -4/Archives Wizard-Scrapper | -4/Hub_04(d) Wizard-Scrapper | -3/Research Wizard-Scrapper | -3/Testing Wizard-Scrapper | -3/Garrison Wizard-Tank | -2/Research Wizard-Tank | -2/Quarantine Wizard-Tank | -2/Protoforge Resources | -11 -10 -10 -9 -9 -9 -9 -6 -6 -6 -6 -5 -5 -5 -5 -5 -5 -5 -4 -4 -4 -4 -4 -4 -4 -4 -3 -3 -3 -2 -2 -2 ----------- Run | Yrd Mat Min Mat Sto Rec Scr Fac Low Low Zio Pro Fac Was Fac Upp Upp Zhi Pro Fac Was Fac Ext Cet Arc Hub Res Tes Gar Res Qua Frg Matter Collected 9753 | 250 10 . 275 100 . 521 1196 94 73 105 235 847 82 538 164 49 . 80 567 167 429 10 90 . 80 230 305 150 699 258 2149 Remotely . | . . . . . . . . . . . . . . . . . . . . . . . . . . . . . . . . Salvage Created 48798 | 99 282 . 1954 1174 322 . 3160 262 457 . 735 4146 . 2009 383 854 . 119 3029 470 4336 263 383 147 1182 2015 2238 1507 6730 2423 8119 Parts 2270 | 2 19 . 95 76 15 . 108 12 25 . 36 201 8 72 13 26 3 4 154 34 197 40 11 8 74 89 101 65 270 97 415 Haulers Intercepted 31 | . 1 . 4 4 . . 3 . . . . 5 . 2 . . . . 1 . 1 . . . . 4 2 . 4 . . Recyclers Shooed 12 | . . . 2 . . . 4 . . . . 1 . . . . . . 3 . 1 . . . . . . . 1 . . Parts Field Recycled . | . . . . . . . . . . . . . . . . . . . . . . . . . . . . . . . . Retrieved Matter . | . . . . . . . . . . . . . . . . . . . . . . . . . . . . . . . . Parts Self-Destructed . | . . . . . . . . . . . . . . . . . . . . . . . . . . . . . . . . Prevented . | . . . . . . . . . . . . . . . . . . . . . . . . . . . . . . . . Kills | -11 -10 -10 -9 -9 -9 -9 -6 -6 -6 -6 -5 -5 -5 -5 -5 -5 -5 -4 -4 -4 -4 -4 -4 -4 -4 -3 -3 -3 -2 -2 -2 ------- Run | Yrd Mat Min Mat Sto Rec Scr Fac Low Low Zio Pro Fac Was Fac Upp Upp Zhi Pro Fac Was Fac Ext Cet Arc Hub Res Tes Gar Res Qua Frg Combat Hostiles Destroyed 682 | . 7 1 29 20 5 . 31 7 14 . 16 58 2 33 8 14 . 2 55 6 56 9 3 2 15 23 22 33 69 27 115 Melee 3 | . . . . . . . . . . . . 3 . . . . . . . . . . . . . . . . . . . Guns 197 | . 6 1 14 8 4 . 10 5 12 . 13 43 1 22 5 6 . 1 4 . . . . . . . . . . . 42 Cannons 342 | . . . 3 5 . . 12 . . . . . . 4 2 7 . 1 43 5 47 9 2 1 12 19 20 24 49 21 56 AOE 22 | . . . 9 4 1 . . 1 . . . . . 1 . . . . 2 . . . . . . . . 4 . . . Classes Destroyed 29 | 1 5 1 5 . . . 5 . 1 . . 1 1 2 . . . . 1 . 2 . . . . 1 . 1 . 2 . Worker 22 | . 2 . 2 1 1 . 4 . . . . 1 . . . . . . 1 . 1 . . . 2 2 2 . 3 . . Builder 19 | . . . 1 . . . . . . . . 4 . . . . . . 4 . 4 1 . . . 2 1 . 1 . 1 Tunneler 1 | . . . . . . . . . . . . . . . . . . . . . 1 . . . . . . . . . . Hauler 32 | . 1 . 4 4 . . 3 . . . . 5 . 2 . . . . 1 . 1 . . . . 4 2 . 4 . 1 Recycler 16 | 1 . . 2 . . . 7 . . . . 1 . . . . . . . . 1 . . . . 2 1 . 1 . . Minesweeper 2 | . . . . . . . . . 1 . 1 . . . . . . . . . . . . . . . . . . . . Mechanic 5 | . . . . . . . . . . . . . . 1 . . . . . . . . . . . . . . . . 4 Operator 14 | . . . 2 2 . . . . . . . 2 . . . . . . 1 . 3 . . . . . . . 2 1 1 Drone 7 | . . . . . . . . . . . . . . . . . . . . . . . . . . . . 1 . . 6 Watcher 49 | . 1 . 4 2 . . 2 . . . . 7 . 1 . . . . 3 . 7 . 2 . 2 1 2 . 8 3 4 Swarmer 92 | . 2 . 6 . . . 3 3 7 . 4 . . . 4 7 . . 13 . 7 . . . . 4 . 18 . 6 8 Saboteur 5 | . . . . . . . . . . . . . . . . . . . 1 . . . . . . . . . . . 4 Grunt 189 | . 5 . 11 7 1 . 10 1 3 . 5 31 . 17 1 5 . 2 16 . 15 4 . . 1 10 . 4 26 7 7 Brawler 15 | . . . 1 1 . . 1 1 1 . 3 . . 1 . . . . 3 . . . . . . . . 1 1 . 1 Duelist 18 | . . . 1 1 . . 1 . 1 . 3 1 . . . . . . 2 . . . . . . 1 . . . 1 6 Protector 11 | . . . . . . . 1 . . . . . . 1 . . . . . . 1 . . . 1 . . . 1 . 6 Sentry 75 | . . . 10 11 4 . 2 . 2 . 1 6 . 5 . 2 . . 4 . 5 4 . 2 6 . 1 4 3 . 3 Demolisher 1 | . . 1 . . . . . . . . . . . . . . . . . . . . . . . . . . . . . Specialist 20 | . . . . . . . . . . . . . . 1 . . . . 2 . 6 . . . . . 3 . 1 3 4 Hunter 71 | . . . . . . . 3 2 . . . 10 . 2 2 . . . 6 . 9 . . . 2 3 4 4 14 . 10 Programmer 93 | . . . . . . . 7 . . . . 7 . 1 1 . . . 8 . 10 . . . 1 1 14 . 18 8 17 Heavy 9 | . . . . . . . 3 . . . . 2 . 3 . . . . . . . . . . . . . . 1 . . Behemoth 11 | . . . . . . . . . . . . 1 . . . . . . . . 2 1 . . 1 2 . 1 3 . . Compactor 8 | . . . . . . . . . . . . . 2 . . . . . . 6 . . . . . . . . . . . Cetus Guard 3 | . . . . . . . . . . . . . . . . . . . . . . . 3 . . . . . . . . Lightning 3 | . . . . . . . . . . . . . . . . . . . . . . . . . 3 . . . . . . Hotshot 5 | . . . . . . . . . . . . . . . . . . . . . . . . . . . . . . . 5 Immortal 1 | . . . . . . . . . . . . . . . . . . . . . . . . . . . . . . . 1 Striker 21 | . . . . . . . . . . . . . . . . . . . . . . . . . . 2 . . 1 . 18 Executioner 18 | . . . . . . . . . . . . . . . . . . . . . 1 . . . . . . . . . 17 Alpha 7 3 | . . . . . . . . . . . . . . . . . . . . . . . . . . . . . . 1 2 Fortress 1 | . . . . . . . . . . . . . . . . . . . . . . . . . . . . . . 1 . Scrapoid 3 | . . . . . . . 2 . . . . . . . . . . . . . . . . . . . . . . . 1 Thug 1 | . . . . . . . . . . . . . . 1 . . . . . . . . . . . . . . . . . Butcher 1 | . . . . . . . . . . . . . . . . . . . . . . . 1 . . . . . . . . Martyr 1 | . . . . . . . . . . . . . . 1 . . . . . . . . . . . . . . . . . Best Kill Streak 21 | 1 3 1 5 7 4 . 7 3 10 . 9 19 1 9 3 11 . 2 14 5 14 4 3 2 5 7 7 7 9 3 21 Combat Bots Only 21 | . 2 1 4 5 3 . 7 3 9 . 9 11 1 7 3 11 . 2 14 5 7 3 2 2 4 5 7 7 6 3 21 Max Kills in Single Turn 4 | 1 3 1 2 2 3 . 2 2 1 . 2 2 1 2 1 2 . 1 3 1 2 2 1 1 2 1 2 4 2 2 2 Gunslinging 1 | . . . . . . . . 1 . . 1 . . . . . . . . . . . . . . . . . . . 1 Exploded 4 | . . . 2 1 1 . . 1 . . . . . 1 . . . . 2 . . . . . . . . 4 . . . Melee 1 | . . . . . . . . . . . . 1 . . . . . . . . . . . . . . . . . . . Uniques/NPCs Destroyed . | . . . . . . . . . . . . . . . . . . . . . . . . . . . . . . . . Combat | -11 -10 -10 -9 -9 -9 -9 -6 -6 -6 -6 -5 -5 -5 -5 -5 -5 -5 -4 -4 -4 -4 -4 -4 -4 -4 -3 -3 -3 -2 -2 -2 -------- Run | Yrd Mat Min Mat Sto Rec Scr Fac Low Low Zio Pro Fac Was Fac Upp Upp Zhi Pro Fac Was Fac Ext Cet Arc Hub Res Tes Gar Res Qua Frg Hostile Shots Fired 3408 | . 32 2 90 48 1 . 125 21 43 . 39 400 . 140 31 63 . 10 292 . 224 36 11 4 48 61 196 144 316 99 932 Missed 1322 | . 9 . 24 16 1 . 37 9 17 . 12 111 . 58 12 34 . 5 120 . 87 13 6 2 7 25 74 74 117 26 426 Hits 2086 | . 23 2 66 32 . . 88 12 26 . 27 289 . 82 19 29 . 5 172 . 137 23 5 2 41 36 122 70 199 73 506 Melee 30 | . . . . 2 . . . . 1 . . . . 1 . . . . 2 . . . . . . . . . . 3 21 Projectile 2056 | . 23 2 66 30 . . 88 12 25 . 27 289 . 81 19 29 . 5 170 . 137 23 5 2 41 36 122 70 199 70 485 AOE 8 | . . 2 . . . . . . . . . 3 . . . . . . . . 2 . . . . . . . 1 . . Critical Strikes 87 | . 1 . 2 1 . . 4 . . . 3 13 . 4 . . . 1 12 . 2 . 3 . . 3 2 1 4 3 28 Damage Taken 18072 | 26 230 52 545 278 5 . 868 57 115 . 152 2380 . 1421 135 243 . 48 1747 . 1138 243 69 22 196 475 387 490 1242 293 5215 Core 11796 | 20 158 32 323 183 2 . 602 44 80 . 85 1474 . 917 87 150 . 37 1156 . 778 154 45 16 125 294 227 304 786 181 3536 Absorbed by Shields 9657 | . . . 16 119 2 . 324 65 134 . 171 752 . 336 38 67 . 14 477 . 317 150 56 6 57 136 239 455 1171 274 4281 Reduced by Siege Mode 37 | . . . . . . . . . . . . . . . . . . . 2 . . . . . . . . . . . 35 Redirected to Core 10582 | 20 115 24 230 168 2 . 554 38 76 . 79 1391 . 850 77 140 . 37 1066 . 735 132 45 16 103 283 204 282 660 159 3096 Ignored by Resistances 25390 | 14 144 30 349 240 5 . 696 73 151 . 187 3609 . 1150 164 182 . 37 1599 . 1433 255 74 17 1185 360 1997 559 2828 1322 6730 Regen/Repaired (Parts) 54 | . . . . . . . . . . . . . 47 7 . . . . . . . . . . . . . . . . . Core Remaining (%) 97 | 96 . 94 . . . 100 . . . . 100 . . . . . . 95 . . . . . . 100 . . 97 . . . Volleys Fired 2129 | 2 37 4 116 73 4 . 128 13 24 1 40 224 8 128 18 26 2 9 151 25 154 20 20 4 47 66 76 70 221 82 336 Largest 4 | 1 1 1 2 4 4 . 4 3 3 1 3 3 3 4 3 3 2 2 4 3 3 2 3 3 2 2 3 2 3 3 4 Hottest 380 | 40 40 40 101 191 191 . 330 210 210 100 210 210 210 380 258 265 215 215 365 280 345 230 345 345 230 230 345 230 360 302 336 Shots Fired 4228 | 2 37 4 128 145 16 . 230 25 65 1 84 433 24 268 43 57 4 18 303 63 298 39 38 9 92 128 144 132 442 149 807 Gun 1646 | 2 37 4 96 74 12 . 72 19 65 1 84 432 24 245 35 24 2 9 58 . . . . . . . . . . . 351 Cannon 2553 | . . . 12 71 4 . 157 6 . . . . . 20 8 33 2 9 245 63 298 39 38 9 92 128 144 131 441 148 455 Launcher 21 | . . . 20 . . . . . . . . . . . . . . . . . . . . . . . . 1 . . . Special 8 | . . . . . . . 1 . . . . 1 . 3 . . . . . . . . . . . . . . 1 1 1 Kinetic 667 | . . . . . . . 18 6 17 . 40 115 8 38 8 7 . . 31 14 6 . . . . . 5 . 2 1 351 Thermal 3097 | . . . . . . . 94 13 48 1 44 317 16 227 35 50 4 18 272 49 292 39 38 9 92 128 139 131 439 147 455 Explosive 2 | . . . 1 . . . . . . . . . . . . . . . . . . . . . . . . 1 . . . Electromagnetic 454 | 2 37 4 127 145 16 . 117 6 . . . . . . . . . . . . . . . . . . . . . . . Robot Hit Streak 82 | 2 13 9 25 27 21 . 82 21 18 . 26 26 38 55 15 17 5 10 34 25 31 15 17 10 24 26 55 39 24 27 76 Robot Miss Streak 4 | . 1 . 2 2 . . 2 2 3 . 4 2 . 2 2 3 . 1 2 1 3 1 1 . 2 2 2 2 3 1 4 Penetration Max 2 | . . . . . . . . . . . . . . . . 1 . . 1 1 1 . . . . . . . 1 . 2 Secondary Targets 44 | . . . . . . . 1 1 5 . 5 11 . 4 4 . . . . . . . . . . . . . . . 13 Max Gunslinging Chain 1 | . . . . . . . 1 1 1 . 1 1 . 1 1 . . . . . . . . . . . . . . . 1 Shots Hit Robots 3291 | 2 33 4 95 96 7 1 193 21 51 . 74 380 20 220 36 36 4 12 228 52 223 30 31 8 75 100 83 85 348 94 649 Core Hits 1383 | 2 14 2 59 48 8 . 76 11 17 . 27 136 4 84 11 18 1 4 104 13 101 19 13 3 40 44 43 41 136 37 267 Critical Kills 88 | . . . . . . . 3 . . . 1 1 . . . 3 . . 11 1 10 . 1 1 2 3 2 2 15 5 27 Critical Parts Destroyed 39 | . . . . . . . . . . . 1 1 . . . 2 . . 12 2 . . . . . . 1 . 1 . 19 Critical Strikes 267 | . . . . 2 . . 8 2 6 . 11 49 2 32 9 7 . 2 33 12 10 . 1 1 2 3 3 2 16 5 49 Burn 117 | . . . . . . . 4 2 6 . 8 43 2 31 7 2 . 2 10 . . . . . . . . . . . . Meltdown 62 | . . . . . . . 3 . . . . . . . . . . . 3 1 8 . 1 1 2 3 2 2 14 5 17 Destroy 78 | . . . . . . . . . . . 3 2 . . . 5 . . 20 11 2 . . . . . 1 . 2 . 32 Blast 3 | . . . . . . . . . . . . . . 1 2 . . . . . . . . . . . . . . . . Corrupt 3 | . . . . 2 . . 1 . . . . . . . . . . . . . . . . . . . . . . . . Impale 4 | . . . . . . . . . . . . 4 . . . . . . . . . . . . . . . . . . . Melee Attacks 30 | . . . . . . 1 . . . . 1 21 . . . . . . . . 3 . . . 1 1 . 1 1 . . Impact . | . . . . . . . . . . . . . . . . . . . . . . . . . . . . . . . . Slashing . | . . . . . . . . . . . . . . . . . . . . . . . . . . . . . . . . Piercing 29 | . . . . . . . . . . . 1 21 . . . . . . . . 3 . . . 1 1 . 1 1 . . Sneak Attacks 4 | . . . . . . 1 . . . . 1 2 . . . . . . . . . . . . . . . . . . . Combat Hostiles . | . . . . . . . . . . . . . . . . . . . . . . . . . . . . . . . . Follow-up Attacks . | . . . . . . . . . . . . . . . . . . . . . . . . . . . . . . . . Damage Inflicted 122754 | 48 738 97 2652 2209 204 . 6109 749 1440 . 1902 10632 493 7175 1245 1433 141 429 9277 2152 9546 1212 1285 326 2981 4133 3666 4332 14856 4045 27247 Guns 37732 | 24 474 43 1167 1051 129 . 1387 406 1440 . 1836 9926 493 5683 899 569 60 192 1436 . . . . . . . . . . . 10517 Cannons 79463 | . . . 205 906 25 . 4344 233 . . . . . 947 346 864 81 237 7258 2152 9302 1212 1285 326 2981 4133 3661 3334 14856 4045 16730 Explosions 4772 | 24 260 54 1280 246 50 . 378 110 . . . . . 545 . . . . 583 . 244 . . . . . . 998 . . . Melee 772 | . . . . . . . . . . . 66 706 . . . . . . . . . . . . . . . . . . . Ramming 15 | . 4 . . 6 . . . . . . . . . . . . . . . . . . . . . . 5 . . . . Kinetic 17245 | . . . . . . . 362 106 252 . 792 2058 138 1274 346 168 . . 636 377 53 . . . . . 54 . 79 33 10517 Thermal 95111 | 24 156 54 77 246 50 . 2976 410 1188 . 1044 7868 355 5901 899 1265 141 429 8363 1775 9493 1212 1285 326 2981 4133 3607 3334 14777 4012 16730 Explosive 1251 | . . . 146 . . . . . . . . . . . . . . . 107 . . . . . . . . 998 . . . Electromagnetic 8360 | 24 578 43 2429 1957 154 . 2771 233 . . . . . . . . . . 171 . . . . . . . . . . . . Impact . | . . . . . . . . . . . . . . . . . . . . . . . . . . . . . . . . Slashing . | . . . . . . . . . . . . . . . . . . . . . . . . . . . . . . . . Piercing 772 | . . . . . . . . . . . 66 706 . . . . . . . . . . . . . . . . . . . Highest Corruption 9 | . . . . . . . 2 1 1 1 . 9 1 1 . . . . 4 4 4 . . . . . . . . . 1 Average Corruption 1 | . . . . . . . 1 1 1 1 . 5 1 1 . . . . 3 4 2 . . . . . . . . . 1 Corruption Purged 18 | . . . . . . . 2 . . . . 8 . 2 . . . . . . 5 . . . . . . . . . 1 Corruption Blocked . | . . . . . . . . . . . . . . . . . . . . . . . . . . . . . . . . Effects 118 | . . . . . . . 21 4 6 1 . 7 1 2 . . . . 31 6 12 . . . . . . . . . 27 Message Errors 35 | . . . . . . . 10 1 3 . . 1 1 . . . . . 6 . 2 . . . . . . . . . 11 Matter Fused 35 | . . . . . . . 5 1 2 . . 2 . . . . . . 13 3 4 . . . . . . . . . 5 Heat Flow Errors 15 | . . . . . . . 2 1 . . . . . 2 . . . . 4 1 1 . . . . . . . . . 4 Energy Discharges 12 | . . . . . . . 2 . 1 1 . 2 . . . . . . 3 . . . . . . . . . . . 3 Parts Rejected 4 | . . . . . . . . 1 . . . . . . . . . . 1 1 . . . . . . . . . . 1 Parts Fused 1 | . . . . . . . . . . . . . . . . . . . 1 . . . . . . . . . . . . Data Loss (minor) 7 | . . . . . . . 1 . . . . 1 . . . . . . 1 . 2 . . . . . . . . . 2 Data Loss (major) 4 | . . . . . . . 1 . . . . . . . . . . . 1 . 1 . . . . . . . . . 1 Misfires 1 | . . . . . . . . . . . . 1 . . . . . . . . . . . . . . . . . . . Alerts 1 | . . . . . . . . . . . . . . . . . . . . . 1 . . . . . . . . . . Weapon Failures 3 | . . . . . . . . . . . . . . . . . . . 1 1 1 . . . . . . . . . . Overload Shots . | . . . . . . . . . . . . . . . . . . . . . . . . . . . . . . . . Overflow Damage 2503 | . . . 33 20 . . 206 20 . . 26 149 . . 25 45 . . 269 7 293 12 25 . 57 167 42 136 366 188 417 Projectiles 2186 | . . . . 20 . . 206 20 . . . . . . 25 45 . . 261 7 289 12 25 . 57 167 42 39 366 188 417 Explosions 142 | . . . 33 . . . . . . . . . . . . . . . 8 . 4 . . . . . . 97 . . . Melee 175 | . . . . . . . . . . . 26 149 . . . . . . . . . . . . . . . . . . . Knockbacks 12 | . . . . . . . 1 . . . . . . 1 3 . . . 4 . . . . . . . 2 . . 1 . Impact . | . . . . . . . . . . . . . . . . . . . . . . . . . . . . . . . . Kinetic 11 | . . . . . . . 1 . . . . . . 1 2 . . . 4 . . . . . . . 2 . . 1 . Secondary 1 | . . . . . . . . . . . . . . . 1 . . . . . . . . . . . . . . . . Self-Inflicted Damage 474 | 26 69 . 38 111 7 . 60 . . . . . . 41 . . . . 11 . 69 . . . . . . 42 . . . Shots 20 | 1 3 . 3 5 1 . 2 . . . . . . 1 . . . . 1 . 2 . . . . . . 1 . . . Rammed 4 | . 2 . . 1 . . . . . . . . . . . . . . . . . . . . . . 1 . . . . Targets Rammed 4 | . 2 . . 1 . . . . . . . . . . . . . . . . . . . . . . 1 . . . . Kicked . | . . . . . . . . . . . . . . . . . . . . . . . . . . . . . . . . Crushed . | . . . . . . . . . . . . . . . . . . . . . . . . . . . . . . . . Highest Temperature 476 | 7 79 40 238 184 98 . 385 281 406 14 362 438 375 380 11 277 87 1 476 352 396 325 303 216 . 57 324 . 380 326 409 Average Temperature 86 | 4 21 21 61 53 49 . 82 116 124 14 154 66 176 97 8 88 77 1 156 125 128 109 165 151 . 57 119 . 148 129 94 Received Heat Transfer 5253 | . 150 . 377 100 . . 222 8 43 . 84 652 . 190 25 80 . 27 376 . 180 42 7 . 21 246 7 30 149 29 2208 Effects 11 | . . . . . . . 3 . 2 . . . . 3 . . . . 1 . 1 . . . . . . . 1 . . Shutdowns 3 | . . . . . . . 1 . . . . . . 1 . . . . 1 . . . . . . . . . . . . Energy Bleed 3 | . . . . . . . 1 . . . . . . . . . . . . . 1 . . . . . . . 1 . . Interference 3 | . . . . . . . . . 2 . . . . 1 . . . . . . . . . . . . . . . . . Matter Decay 1 | . . . . . . . . . . . . . . 1 . . . . . . . . . . . . . . . . . Short Circuit 1 | . . . . . . . 1 . . . . . . . . . . . . . . . . . . . . . . . . Siege Activations 5 | . . . . . . . . . . . . . . . . . . . 1 . . . . . . . . . 1 . 3 Total Turns 122 | . . . . . . . . . . . . . . . . . . . 33 . . . . . . . . . 5 . 84 Longest Duration 49 | . . . . . . . . . . . . . . . . . . . 33 . . . . . . . . . 5 . 49 Martial Activations . | . . . . . . . . . . . . . . . . . . . . . . . . . . . . . . . . Shielding Activations . | . . . . . . . . . . . . . . . . . . . . . . . . . . . . . . . . Robots Disrupted 1 | . . . 1 . . . . . . . . . . . . . . . . . . . . . . . . . . . . Combat Hostiles . | . . . . . . . . . . . . . . . . . . . . . . . . . . . . . . . . Robots Corrupted 19 | . 1 . 5 4 . . 8 1 . . . . . . . . . . . . . . . . . . . . . . . Combat Hostiles 12 | . 1 . 3 3 . . 4 1 . . . . . . . . . . . . . . . . . . . . . . . Parts Fried 67 | . 2 . 22 13 . . 24 4 . . . . . . . . . . . . . . . . . . . . 1 . 1 Impact Corruptions 1 | . . . . . . . . . . . . . . . 1 . . . . . . . . . . . . . . . . Robots Melted 108 | . . . . . . . 5 . 3 . 3 14 1 6 1 1 . . 6 1 9 . 1 1 2 4 2 4 21 6 17 Combat Hostiles 98 | . . . . . . . 5 . 2 . 3 11 1 6 1 1 . . 6 1 7 . 1 1 2 3 2 4 19 6 16 Parts Melted 647 | . . . 1 . . . 30 4 13 . 9 111 5 54 6 2 . 3 43 4 60 4 2 2 13 26 35 19 109 30 62 Heat Transferred 133643 | 50 200 50 100 350 50 . 4588 750 2550 . 2600 18250 900 12544 2201 2000 200 850 12050 2250 11350 1550 1637 325 3527 5200 4150 4250 17151 4496 17474 Parts Sabotaged 3 | . . . . . . . . . . . . . . . . . . . 3 . . . . . . . . . . . . Parts Stolen . | . . . . . . . . . . . . . . . . . . . . . . . . . . . . . . . . Parts Stripped . | . . . . . . . . . . . . . . . . . . . . . . . . . . . . . . . . Power Chain Reactions 23 | 1 3 1 3 8 1 . 5 1 . . . . . . . . . . . . . . . . . . . . . . . Alert | -11 -10 -10 -9 -9 -9 -9 -6 -6 -6 -6 -5 -5 -5 -5 -5 -5 -5 -4 -4 -4 -4 -4 -4 -4 -4 -3 -3 -3 -2 -2 -2 ------- Run | Yrd Mat Min Mat Sto Rec Scr Fac Low Low Zio Pro Fac Was Fac Upp Upp Zhi Pro Fac Was Fac Ext Cet Arc Hub Res Tes Gar Res Qua Frg Maximum Alert Level 4 | . . . . . . . . . . . . 2 . 4 . . . . 3 . 2 . . . 2 1 . 3 3 1 4 Low Security (%) 73 | 100 100 100 100 100 100 . 100 . . . . 72 100 14 . . . . 34 100 88 100 100 100 33 71 100 14 . 72 70 Level 1 8 | . . . . . . . . . . . . 7 . 5 . . . . 7 . 6 . . . 21 28 . 10 25 27 13 Level 2 11 | . . . . . . . . . . . . 20 . 33 . . . . 44 . 4 . . . 45 . . 42 54 . 4 Level 3 5 | . . . . . . . . . . . . . . 21 . . . . 14 . . . . . . . . 31 19 . 10 Level 4 1 | . . . . . . . . . . . . . . 25 . . . . . . . . . . . . . . . . . Level 5 . | . . . . . . . . . . . . . . . . . . . . . . . . . . . . . . . . High Security . | . . . . . . . . . . . . . . . . . . . . . . . . . . . . . . . . Max Security . | . . . . . . . . . . . . . . . . . . . . . . . . . . . . . . . . Peak Influence 1368 | 5 63 30 129 142 112 . 171 . . . . 552 54 1368 . . . . 968 32 454 99 99 109 563 312 167 949 816 319 1107 Initial 400 | . . . 3 . . . . . . . . 16 . . . . . . . 32 . 13 . 14 . 198 13 18 400 308 . Average 171 | . 6 1 28 26 24 . 25 . . . . 131 7 721 . . . . 390 6 107 26 28 13 327 126 28 568 518 99 197 Influence Increases 24088 | 5 224 30 946 695 352 . 1463 170 295 . 365 1722 96 2591 436 315 5 52 1892 22 1751 329 223 110 1339 740 752 971 2392 813 2992 Destroy 0b10 Robot/C 15140 | . 140 20 580 400 100 . 880 140 280 . 320 1200 . 1360 380 300 . 40 1160 . 1100 220 160 80 580 460 440 660 1500 540 2100 Destroy 0b10 Robot/NC 1005 | 5 20 . 75 45 5 . 105 . 5 . 5 110 . 65 5 . 5 . 55 . 95 10 10 . 35 55 40 5 120 20 110 Destroy Leader 3074 | . 34 10 196 152 . . 284 30 10 . 20 308 . 308 10 . . 10 260 . 276 32 . . 178 108 78 60 326 56 328 Allied During Kill 587 | . . . . . . . 50 . . . 20 14 . 216 26 15 . 2 1 . . 17 36 24 157 . . 2 5 . 2 Trap Triggered on 0b10 50 | . . . . . . . . . . . . 10 . . . . . . . . . . . . . . . . 40 . . Successful Hack 708 | . 2 . 15 . . . 77 . . . . 34 . 17 . . . . 8 . 21 18 5 . 36 66 76 14 117 42 160 Select Force Hacks 440 | . . . . . 240 . . . . . . . . . . . . . . . . . . . 200 . . . . . . Disable Machine 352 | . 4 . 44 24 . . 12 . . . . 8 . 112 . . . . 36 . 20 4 . . 20 . 36 . 8 20 4 Anti-Garrison Action 50 | . . . . . . . . . . . . . . . . . . . . . . . . . . . . 50 . . . Destroy Structure 2307 | . 9 . 36 44 7 . 55 . . . . 38 96 498 . . . . 312 22 164 28 12 6 118 36 82 150 261 120 213 Partial Spotted 75 | . . . . . . . . . . . . . . . . . . . . . 45 . . . . . . . 15 . 15 Lose Combat Pursuer 300 | . 15 . . 30 . . . . . . . . . 15 15 . . . 60 . 30 . . . 15 15 . 30 . 15 60 Influence Decreases 23772 | 5 224 15 961 695 352 . 1377 231 300 20 330 1757 96 1252 1357 361 377 52 1754 160 1712 368 169 164 829 1218 753 53 2609 1545 2676 Entered New Map 2815 | . . . 12 . . . . 46 9 20 . 19 . . 697 151 372 . . 106 . 26 . 40 . 312 19 13 549 424 . Time Decay 16381 | 5 224 15 894 667 352 . 1182 185 291 . 330 1179 76 962 600 210 5 52 984 48 1339 313 169 124 399 648 618 . 1590 874 2046 Lost Ally 725 | . . . 10 . . . 195 . . . . 52 20 140 60 . . . 20 6 . . . . 130 . 2 40 20 . 30 Purge Threat 3851 | . . . 45 28 . . . . . . . 507 . 150 . . . . 750 . 373 29 . . 300 258 114 . 450 247 600 Squads Dispatched 139 | . . . 1 1 . . 19 . . . . 22 . 16 . . . . 15 . 16 . . . 10 7 7 . 12 5 8 Investigation 46 | . . . . . . . 5 . . . . 6 . 5 . . . . 4 . 6 . . . 8 5 . . 3 . 4 Extermination 39 | . . . . . . . 5 . . . . 4 . 3 . . . . 3 . 4 . . . 1 . 5 . 5 5 4 Reinforcement 36 | . . . 1 1 . . 5 . . . . 9 . 3 . . . . 3 . 6 . . . 1 2 2 . 3 . . Assault 10 | . . . . . . . . . . . . . . 4 . . . . 5 . . . . . . . . . 1 . . Garrison 8 | . . . . . . . 4 . . . . 3 . 1 . . . . . . . . . . . . . . . . . Intercept . | . . . . . . . . . . . . . . . . . . . . . . . . . . . . . . . . Searches Triggered . | . . . . . . . . . . . . . . . . . . . . . . . . . . . . . . . . Construction Impeded 1 | . . . . . . . . . . . . . . . . . . . . . . . . . 1 . . . . . . Haulers Reinforced 9 | . . . . . . . . . . . . 6 . . . . . . 1 . . . . . . . 1 . 1 . . Active Scanning Responses . | . . . . . . . . . . . . . . . . . . . . . . . . . . . . . . . . Cargo Convoy Interrupts 5 | . . . . . . . 1 . . . . 1 . 1 . . . . . . 1 . . . . . . . 1 . . Stealth | -11 -10 -10 -9 -9 -9 -9 -6 -6 -6 -6 -5 -5 -5 -5 -5 -5 -5 -4 -4 -4 -4 -4 -4 -4 -4 -3 -3 -3 -2 -2 -2 --------- Run | Yrd Mat Min Mat Sto Rec Scr Fac Low Low Zio Pro Fac Was Fac Upp Upp Zhi Pro Fac Was Fac Ext Cet Arc Hub Res Tes Gar Res Qua Frg Distress Signals 35 | . 1 . 5 1 . . 1 . . . . 6 . . . . . . 3 . 1 . 2 . 2 3 . . 4 . 6 Communications Jammed 272 | . . . . . . . . . . . . . . 73 . . . . 15 . 11 83 . . 17 1 6 4 50 1 11 Distress Signals 261 | . . . . . . . . . . . . . . 73 . . . . 12 . 11 83 . . 17 1 6 . 47 . 11 Times Spotted 938 | . 13 1 49 24 1 . 51 7 14 . 16 74 3 56 22 14 . 2 74 5 70 13 12 3 25 29 29 31 91 32 177 Peak Tracking Total 13 | . 3 1 6 4 1 . 8 3 9 . 9 9 1 6 13 11 . 2 8 2 5 5 5 2 5 3 7 6 6 4 13 Tactical Retreats 19 | . 1 . . 2 . . . . . . . . . 1 1 . . . 4 . 2 . . . 1 1 . 2 . 1 3 Traps | -11 -10 -10 -9 -9 -9 -9 -6 -6 -6 -6 -5 -5 -5 -5 -5 -5 -5 -4 -4 -4 -4 -4 -4 -4 -4 -3 -3 -3 -2 -2 -2 ------- Run | Yrd Mat Min Mat Sto Rec Scr Fac Low Low Zio Pro Fac Was Fac Upp Upp Zhi Pro Fac Was Fac Ext Cet Arc Hub Res Tes Gar Res Qua Frg Traps Triggered 27 | . . . . 1 . . . . . . . 2 . 2 . . . . 4 . 6 . . . . . 2 2 5 3 . Indirectly . | . . . . . . . . . . . . . . . . . . . . . . . . . . . . . . . . Trap Hack Attempts 6 | . . . . . . . 6 . . . . . . . . . . . . . . . . . . . . . . . . Triggered . | . . . . . . . . . . . . . . . . . . . . . . . . . . . . . . . . Disarmed . | . . . . . . . . . . . . . . . . . . . . . . . . . . . . . . . . Reprogrammed 8 | . . . . . . . 2 . . . . . . . . . . . . . . . . . . . . . 6 . . Reused 5 | . . . . . . . . . . . . 1 . . . . . . . . . . . . . . . . 4 . . Traps Extracted 5 | . . . . . . . 4 . . . . 1 . . . . . . . . . . . . . . . . . . . Installed 4 | . . . . . . . 2 . . . . 2 . . . . . . . . . . . . . . . . . . . Triggered 5 | . . . . . . . . . . . . 1 . . . . . . . . . . . . . . . . 4 . . Most Traps Carried 2 | . . . . . . . 2 2 2 2 2 2 1 1 . . . . . . . . . . . . . . . . . Machines | -11 -10 -10 -9 -9 -9 -9 -6 -6 -6 -6 -5 -5 -5 -5 -5 -5 -5 -4 -4 -4 -4 -4 -4 -4 -4 -3 -3 -3 -2 -2 -2 ---------- Run | Yrd Mat Min Mat Sto Rec Scr Fac Low Low Zio Pro Fac Was Fac Upp Upp Zhi Pro Fac Was Fac Ext Cet Arc Hub Res Tes Gar Res Qua Frg Machines Disabled 100 | . 1 . 11 6 . . 3 . . . . 2 . 28 3 2 . . 9 . 5 1 . . 5 . 12 3 2 5 2 Max in Single Turn 5 | . 1 . 3 2 . . 1 . . . . 1 . 4 1 1 . . 5 . 3 . . . 1 . 1 2 1 1 1 Garrison Access 13 | . . . . 1 . . 1 . . . . 1 . 1 . . . . 1 . 2 . . . . 3 . . 2 1 . Phase Generator 1 | . . . . . . . . . . . . . . . . . . . . . . . . . . . . 1 . . . Network Hub 4 | . . . . . . . . . . . . . . . . . . . . . . . . . 4 . . . . . . Machines Repaired . | . . . . . . . . . . . . . . . . . . . . . . . . . . . . . . . . Machines Dismantled . | . . . . . . . . . . . . . . . . . . . . . . . . . . . . . . . . Machines Sabotaged 4 | . . . . . . . . . . . . . . . . . . . . . . . . . 4 . . . . . . Overloaded Fab Kills . | . . . . . . . . . . . . . . . . . . . . . . . . . . . . . . . . Hacking | -11 -10 -10 -9 -9 -9 -9 -6 -6 -6 -6 -5 -5 -5 -5 -5 -5 -5 -4 -4 -4 -4 -4 -4 -4 -4 -3 -3 -3 -2 -2 -2 --------- Run | Yrd Mat Min Mat Sto Rec Scr Fac Low Low Zio Pro Fac Was Fac Upp Upp Zhi Pro Fac Was Fac Ext Cet Arc Hub Res Tes Gar Res Qua Frg Machines Accessed 223 | . 7 . 10 10 14 1 26 2 . 1 . 19 . 12 2 1 4 . 9 . 24 6 1 . 7 12 6 3 17 7 22 Terminals 121 | . 6 . 8 8 6 . 9 . . . . 9 . 3 1 1 . . 4 . 12 6 1 . 7 4 5 3 8 5 15 Fabricators 20 | . . . . . . . 4 . . . . 2 . 2 . . . . 1 . 3 . . . . 1 . . 3 . 4 Repair Stations 5 | . 1 . . 1 . . 2 . . . . 1 . . . . . . . . . . . . . . . . . . . Recycling Units 42 | . . . 1 . 8 . 5 . . . . 5 . 5 . . . . 3 . 6 . . . . 3 . . 3 . 3 Scanalyzers 12 | . . . 1 . . . 4 . . . . 1 . 1 . . . . 1 . 1 . . . . 1 . . 1 1 . Garrison Access 14 | . . . . 1 . . 2 . . . . 1 . 1 . . . . . . 2 . . . . 3 1 . 2 1 . Total Hacks 994 | . 29 . 32 36 38 21 101 2 . 3 . 80 . 57 13 6 17 . 37 . 77 21 2 . 48 59 39 13 96 40 127 Successful 740 | . 24 . 27 30 36 21 85 2 . 3 . 52 . 53 13 6 17 . 26 . 62 11 1 . 32 39 21 7 62 24 86 Failed 254 | . 5 . 5 6 2 . 16 . . . . 28 . 4 . . . . 11 . 15 10 1 . 16 20 18 6 34 16 41 Catastrophic 23 | . 1 . 1 . . . . . . . . 2 . . . . . . 3 . . . . . 1 2 1 . 2 6 4 Database Lockouts . | . . . . . . . . . . . . . . . . . . . . . . . . . . . . . . . . Manual 439 | . 22 . 18 18 17 . 45 . . . . 41 . 20 . . . . 17 . 33 10 1 . 21 25 15 10 33 15 78 Terminals 673 | . 27 . 29 33 20 . 41 . . . . 50 . 27 8 6 . . 19 . 47 21 2 . 48 40 37 13 66 36 103 Fabricators 92 | . . . . . . . 14 . . . . 9 . 14 . . . . 3 . 11 . . . . 7 . . 15 . 19 Repair Stations 13 | . 2 . . 2 . . 6 . . . . 3 . . . . . . . . . . . . . . . . . . . Recycling Units 100 | . . . 1 . 18 . 19 . . . . 12 . 11 . . . . 7 . 13 . . . . 6 . . 8 . 5 Scanalyzers 46 | . . . 2 . . . 16 . . . . 3 . 4 . . . . 8 . 3 . . . . 2 . . 5 3 . Garrison Access 22 | . . . . 1 . . 5 . . . . 3 . 1 . . . . . . 3 . . . . 4 2 . 2 1 . Terminal Hacks 348 | . 17 . 13 16 10 21 22 2 . 3 . 20 . 15 13 6 17 . 9 . 24 10 1 . 17 17 14 7 25 17 32 Record 47 | . . . . . . 21 . . . . . . . . 13 6 5 . . . . . . . . . . 2 . . . Part Schematic 42 | . . . 1 3 2 . 8 . . 3 . 2 . 1 . . 4 . . . 5 2 . . 4 3 2 . . 1 1 Robot Schematic 3 | . . . . . 2 . 1 . . . . . . . . . . . . . . . . . . . . . . . . Robot Analysis 21 | . 2 . 2 . . . 3 . . . . . . 2 . . 4 . 1 . . . . . . 1 2 . 1 1 2 Prototype ID Bank 43 | . 11 . 1 3 2 . 1 . . . . 2 . 1 . . 4 . 1 . 1 . . . 1 1 1 . 1 4 8 Open Door 11 | . . . . 1 . . . 2 . . . . . . . . . . . . 1 4 1 . . . . 1 . 1 . Open DSF 1 | . . . . . . . . . . . . . . . . . . . . . 1 . . . . . . . . . . Level Access Points 2 | . . . . . . . . . . . . . . . . . . . . . . . . . . . . . . 1 1 Branch Access Points 8 | . . . 1 1 . . . . . . . 1 . 1 . . . . . . 1 . . . . . . . 1 1 1 Emergency Access Points 7 | . . . 2 . . . . . . . . . . 2 . . . . . . . . . . 1 1 . 1 . . . Machine Index 10 | . . . . . . . 1 . . . . 1 . 1 . . . . . . 1 1 . . 1 1 1 . 1 . 1 Terminal Index 7 | . 1 . 1 1 . . . . . . . . . . . . . . . . 1 . . . 1 . 1 . 1 . . Fabricator Index 1 | . . . . . . . . . . . . . . . . . . . . . . . . . . . . . . 1 . Recycling Unit Index 2 | . . . . . . . . . . . . . . . . . . . . . . . . . . . . . 1 1 . Scanalyzer Index 1 | . . . . . . . . . . . . . . . . . . . . . . . . . . . . . . . 1 Garrison Index 2 | . . . . . . . . . . . . . . . . . . . . . . . . . . . . . 1 . 1 Alert Level 9 | . . . . . . . 1 . . . . 1 . . . . . . . . 3 1 . . . 1 2 . . . . Unreport Threat 31 | . . . 1 1 . . . . . . . 4 . 1 . . . . 5 . 3 1 . . 2 2 2 . 3 2 4 Locate Traps 23 | . 1 . 1 1 . . 2 . . . . 3 . 2 . . . . . . 3 1 . . 1 2 . . 4 . 2 Reprogram Traps 1 | . . . . . . . . . . . . . . . . . . . . . . . . . . . . . 1 . . Patrol Status 1 | . . . . . . . . . . . . . . . . . . . . . 1 . . . . . . . . . . Recall Investigation 4 | . . . . . . . 1 . . . . 1 . . . . . . . . . . . . 1 1 . . . . . Recall Extermination 8 | . . . . . . . 1 . . . . 1 . 1 . . . . . . . . . . 1 . . . 1 1 2 Recall Reinforcements 2 | . . . . . . . . . . . . . . . . . . . . . . . . . 1 . . . 1 . . Recall Assault 4 | . . . . . . . . . . . . . . . . . . . 1 . . . . . . . 1 . 2 . . Hauler Manifests 8 | . 1 . 1 . 1 . 1 . . . . 1 . 1 . . . . . . 1 . . . . . . . . . 1 Registered Components 10 | . . . . 1 . . 1 . . . . 1 . 1 . . . . . . 1 . . . 1 1 . . 1 1 1 Registered Prototypes 6 | . . . . 1 . . 1 . . . . 1 . 1 . . . . . . . . . . . . . . 1 . 1 Zone Layout 30 | . 1 . 2 3 3 . . . . . . 1 . . . . . . 1 . 1 . . . 2 3 2 . 4 2 5 Garrison Registry 1 | . . . . . . . . . . . . . . . . . . . . . . . . . . . . 1 . . . Patrol Navigation 1 | . . . . . . . . . . . . . . . . . . . . . . . . . . . . 1 . . . Security Stations 1 | . . . . . . . . . . . . . . . . . . . . . . . . . . . . 1 . . . Fabricator Hacks 51 | . . . . . . . 8 . . . . 4 . 9 . . . . 1 . 7 . . . . 4 . . 11 . 7 Network Status 5 | . . . . . . . . . . . . . . 1 . . . . 1 . 1 . . . . . . . 1 . 1 Load Schematic 22 | . . . . . . . 4 . . . . 2 . 4 . . . . . . 3 . . . . 2 . . 5 . 2 Build 24 | . . . . . . . 4 . . . . 2 . 4 . . . . . . 3 . . . . 2 . . 5 . 4 Repair Station Hacks 10 | . 1 . . 1 . . 6 . . . . 2 . . . . . . . . . . . . . . . . . . . Scan Component 4 | . . . . . . . 3 . . . . 1 . . . . . . . . . . . . . . . . . . . Repair 4 | . . . . . . . 3 . . . . 1 . . . . . . . . . . . . . . . . . . . Refit 2 | . 1 . . 1 . . . . . . . . . . . . . . . . . . . . . . . . . . . Recycling Unit Hacks 42 | . . . 1 . 9 . 6 . . . . 3 . 6 . . . . 3 . 6 . . . . 3 . . 4 . 1 Report Inventory 38 | . . . 1 . 8 . 5 . . . . 3 . 5 . . . . 3 . 6 . . . . 3 . . 3 . 1 Retrieve Components 4 | . . . . . 1 . 1 . . . . . . 1 . . . . . . . . . . . . . . 1 . . Scanalyzer 42 | . . . 2 . . . 15 . . . . 2 . 4 . . . . 8 . 3 . . . . 2 . . 4 2 . Insert Component 20 | . . . 1 . . . 6 . . . . 1 . 2 . . . . 4 . 1 . . . . 1 . . 2 2 . Analyze 22 | . . . 1 . . . 9 . . . . 1 . 2 . . . . 4 . 2 . . . . 1 . . 2 . . Garrison Access Hacks 14 | . . . . 1 . . 1 . . . . 2 . 1 . . . . . . 2 . . . . 3 1 . 2 1 . Unlock Access 2 | . . . . . . . . . . . . 1 . . . . . . . . . . . . . . 1 . . . . Seal Access 12 | . . . . 1 . . 1 . . . . 1 . 1 . . . . . . 2 . . . . 3 . . 2 1 . Unauthorized Hacks 231 | . 6 . 11 12 17 . 26 . . . . 18 . 18 . . . . 5 . 20 1 . . 15 10 6 . 16 4 46 Terminals 161 | . 6 . 11 12 9 . 12 . . . . 11 . 8 . . . . 2 . 12 1 . . 15 5 6 . 11 4 36 Track 39 | . 1 . . 3 1 . 3 . . . . 3 . 2 . . . . 1 . 4 . . . 5 1 1 . 2 1 11 Assimilate 8 | . . . . 1 . . . . . . . 1 . . . . . . . . . . . . . . . . . . 6 Botnet 37 | . . . 2 2 3 . 3 . . . . 1 . 2 . . . . . . 2 1 . . 3 2 2 . 2 2 10 Disrupt 2 | . . . . . . . . . . . . . . . . . . . . . . . . . . . . . . 1 1 Operators 11 | . . . 1 1 . . 1 . . . . 1 . 1 . . . . . . 1 . . . . 1 1 . 1 . 2 Skim 57 | . 5 . 8 5 5 . 5 . . . . 5 . 3 . . . . 1 . 5 . . . . 1 2 . 6 . 6 Sabotage 7 | . . . . . . . . . . . . . . . . . . . . . . . . . 7 . . . . . . Fabricators 23 | . . . . . . . 4 . . . . 1 . 5 . . . . . . 2 . . . . 2 . . 2 . 7 Report 3 | . . . . . . . . . . . . . . 1 . . . . . . . . . . . 1 . . . . 1 Prioritize 12 | . . . . . . . 3 . . . . 1 . 1 . . . . . . 2 . . . . 1 . . 2 . 2 Liberate 7 | . . . . . . . 1 . . . . . . 2 . . . . . . . . . . . . . . . . 4 Haulers 1 | . . . . . . . . . . . . . . 1 . . . . . . . . . . . . . . . . . Repair Stations . | . . . . . . . . . . . . . . . . . . . . . . . . . . . . . . . . Recycling Units 46 | . . . . . 8 . 9 . . . . 6 . 5 . . . . 3 . 6 . . . . 3 . . 3 . 3 Monitor 1 | . . . . . . . 1 . . . . . . . . . . . . . . . . . . . . . . . . Reject 3 | . . . . . . . 2 . . . . 1 . . . . . . . . . . . . . . . . . . . Recyclers 1 | . . . . . . . 1 . . . . . . . . . . . . . . . . . . . . . . . . Mask 3 | . . . . . . . 2 . . . . 1 . . . . . . . . . . . . . . . . . . . Tunnel 8 | . . . . . 8 . . . . . . . . . . . . . . . . . . . . . . . . . . Fedlink 25 | . . . . . . . 2 . . . . 4 . 3 . . . . 3 . 6 . . . . 3 . . 2 . 2 Scrapoids 1 | . . . . . . . 1 . . . . . . . . . . . . . . . . . . . . . . . . Scraphulk 4 | . . . . . . . . . . . . . . 2 . . . . . . . . . . . . . . 1 . 1 Scanalyzers . | . . . . . . . . . . . . . . . . . . . . . . . . . . . . . . . . Garrison Access 1 | . . . . . . . 1 . . . . . . . . . . . . . . . . . . . . . . . . Redirect 1 | . . . . . . . 1 . . . . . . . . . . . . . . . . . . . . . . . . Data Cores Recovered 6 | . . . . 1 . . . . . . . 1 . . . . . . . . 1 . . . . . . . 1 1 1 Used 2 | . . . . . . . . . . . . . . . . . . . . . 1 . . . . . . . . 1 . Hacking Detections 121 | . 5 . 5 4 5 . 20 . . . . 13 . 5 . 1 . . 5 . 11 3 . . 5 5 5 3 10 4 12 Full Trace Events 4 | . . . . . . . 1 . . . . 1 . . . . . . 1 . . . . . . . . . . . 1 Feedback Events 1 | . . . . . . . . . . . . . . . . . . . . . . . . . . . . . . . 1 Corruption 1 | . . . . . . . . . . . . . . . . . . . . . . . . . . . . . . . 1 Feedback Blocked . | . . . . . . . . . . . . . . . . . . . . . . . . . . . . . . . . Robot Schematics Acquired 7 | . . . . . 2 . 1 . . 4 . . . . . . . . . . . . . . . . . . . . . Robots Built 5 | . . . . . . . 1 . . . . 2 . . . . . . . . . . . . . . . . . . 2 Authchips . | . . . . . . . . . . . . . . . . . . . . . . . . . . . . . . . . Time 296 | . . . . . . . 38 . . . . 169 . . . . . . . . . . . . . . . . . . 89 Total Robot Build Rating 23 | . . . . . . . 3 . . . . 12 . . . . . . . . . . . . . . . . . . 8 Part Schematics Acquired 74 | . . . 2 3 2 . 14 . . 18 . 3 . 3 . . 4 . 3 . 6 2 . . 4 4 2 . 2 1 1 Parts Built 28 | . . . . . . . 5 . . . . 1 . 4 . . . . . . 4 . . . . 3 . . 7 . 4 Authchips . | . . . . . . . . . . . . . . . . . . . . . . . . . . . . . . . . Time 1315 | . . . . . . . 277 . . . . 102 . 288 . . . . . . 217 . . . . 114 . . 261 . 56 Total Part Build Rating 175 | . . . . . . . 30 . . . . 8 . 22 . . . . . . 27 . . . . 15 . . 47 . 26 Parts Repaired 4 | . . . . . . . 3 . . . . 1 . . . . . . . . . . . . . . . . . . . Time 460 | . . . . . . . 336 . . . . 124 . . . . . . . . . . . . . . . . . . . Parts Recycled . | . . . . . . . . . . . . . . . . . . . . . . . . . . . . . . . . Recycled Matter . | . . . . . . . . . . . . . . . . . . . . . . . . . . . . . . . . Retrieved Matter . | . . . . . . . . . . . . . . . . . . . . . . . . . . . . . . . . Retrieved Components 24 | . . . . . 2 . 10 . . . . . . 8 . . . . . . . . . . . . . . 4 . . Parts Scanalyzed 17 | . . . 1 . . . 6 . . . . 1 . 2 . . . . 3 . 1 . . . . 1 . . 2 . . Part Schematics Acquired 17 | . . . 1 . . . 6 . . . . 1 . 2 . . . . 3 . 1 . . . . 1 . . 2 . . Parts Damaged 7 | . . . . . . . 4 . . . . 1 . 1 . . . . 1 . . . . . . . . . . . . Bothacking | -11 -10 -10 -9 -9 -9 -9 -6 -6 -6 -6 -5 -5 -5 -5 -5 -5 -5 -4 -4 -4 -4 -4 -4 -4 -4 -3 -3 -3 -2 -2 -2 ------------ Run | Yrd Mat Min Mat Sto Rec Scr Fac Low Low Zio Pro Fac Was Fac Upp Upp Zhi Pro Fac Was Fac Ext Cet Arc Hub Res Tes Gar Res Qua Frg Used RIF Installer 1 | . . . . . . . . . . . . . . . . . . . . . . . . . . . . 1 . . . Robots Hacked 2 | . . . . . . 1 . . . . . . . 1 . . . . . . . . . . . . . . . . . Non-combat . | . . . . . . . . . . . . . . . . . . . . . . . . . . . . . . . . Combat 2 | . . . . . . 1 . . . . . . . 1 . . . . . . . . . . . . . . . . . Robot Hacks Applied 2 | . . . . . . 1 . . . . . . . 1 . . . . . . . . . . . . . . . . . parse_system 2 | . . . . . . 1 . . . . . . . 1 . . . . . . . . . . . . . . . . . Relay Couplers Released 2 | . . . . . . . . . . . . 2 . . . . . . . . . . . . . . . . . . . Programmers 2 | . . . . . . . . . . . . 2 . . . . . . . . . . . . . . . . . . . Fabnet Peak Effective % . | . . . . . . . . . . . . . . . . . . . . . . . . . . . . . . . . Robots Rewired 6 | . . . 1 . . . . . 2 . 2 . . . . . . . . . . . . . . . 1 . . . . Allies Hacked 3 | . . . . . . . . . . . . . . 2 . . . . 1 . . . . . . . . . . . . Hacks Repelled . | . . . . . . . . . . . . . . . . . . . . . . . . . . . . . . . . Allies | -11 -10 -10 -9 -9 -9 -9 -6 -6 -6 -6 -5 -5 -5 -5 -5 -5 -5 -4 -4 -4 -4 -4 -4 -4 -4 -3 -3 -3 -2 -2 -2 -------- Run | Yrd Mat Min Mat Sto Rec Scr Fac Low Low Zio Pro Fac Was Fac Upp Upp Zhi Pro Fac Was Fac Ext Cet Arc Hub Res Tes Gar Res Qua Frg Total Allies 66 | . . . 1 . . . 14 . 2 . 2 3 18 5 2 . . . . 1 . 4 5 . . . 1 2 1 . 5 Largest Group 18 | . . . 1 . . . 7 . 2 2 4 6 18 9 6 3 3 3 3 1 . 4 8 8 7 . 1 2 1 . 3 Highest-Rated Group 733 | . . . 9 . . . 235 . 59 59 118 210 656 366 350 176 176 176 176 46 . 299 733 733 582 . 153 75 139 . 263 Highest-Rated Ally 159 | . . . 9 . . . 47 . 30 30 30 46 50 123 123 123 123 123 123 46 . 159 159 151 96 . 153 46 139 . 139 Total Orders 8 | . . . . . . . 1 . . . . 1 . . 2 . 2 . . . . . . . . . . . . . 2 STAY 3 | . . . . . . . . . . . . 1 . . 1 . 1 . . . . . . . . . . . . . . FOLLOW 2 | . . . . . . . . . . . . . . . 1 . 1 . . . . . . . . . . . . . . AID 1 | . . . . . . . 1 . . . . . . . . . . . . . . . . . . . . . . . . DROP 1 | . . . . . . . . . . . . . . . . . . . . . . . . . . . . . . . 1 PICKUP 1 | . . . . . . . . . . . . . . . . . . . . . . . . . . . . . . . 1 Ally Attacks 771 | . . . . . . . 221 . . . 1 32 114 114 25 7 . . 20 8 . 33 30 10 105 . 1 14 29 . 7 Total Damage 27117 | . . . . . . . 3428 . . . . 722 5162 6516 1004 244 . . 724 259 . 1169 839 317 3876 . 107 338 1731 . 681 Kills 137 | . . . . . . . 19 . . . . 4 12 44 11 2 . . 4 . . 3 5 2 17 . . 1 11 . 2 Allies Corrupted 1 | . . . . . . . . . . . . . . . . . . . . . . . . . . . 1 . . . . Allies Melted 3 | . . . . . . . 1 . . . . . . . . . . . . . . . . . . . . . . . 2 Intel | -11 -10 -10 -9 -9 -9 -9 -6 -6 -6 -6 -5 -5 -5 -5 -5 -5 -5 -4 -4 -4 -4 -4 -4 -4 -4 -3 -3 -3 -2 -2 -2 ------- Run | Yrd Mat Min Mat Sto Rec Scr Fac Low Low Zio Pro Fac Was Fac Upp Upp Zhi Pro Fac Was Fac Ext Cet Arc Hub Res Tes Gar Res Qua Frg Active Infowar (turns) 24316 | . . . 42 . . 1425 2262 389 477 175 275 2193 253 1146 570 299 198 215 1471 198 2137 684 2 . 465 1028 1513 768 2134 1529 2468 Terrain 9782 | . . . . . . . . . . . . . . . . . . . 426 6 939 . . . . 1012 1513 197 1981 1529 2179 Structural 10545 | . . . . . . 1425 2262 389 477 175 275 2193 13 1029 570 299 198 215 273 . 124 626 2 . . . . . . . . T.N.C. 345 | . . . 42 . . . . . . . . . . . . . . . . . . . . . . 303 . . . . . Cloaking 2 | . . . . . . . . . . . . . . . . . . . . . . . . . . . . . . . 2 Jamming 15525 | . . . . . . . . . . . . 256 240 1072 46 . . . 1354 198 2137 684 . . 465 1019 1501 768 2134 1529 2122 Robot Analysis Total 21 | . 2 . 2 . . . 3 . . . . . . 2 . . 4 . 1 . . . . . . 1 2 . 1 1 2 Derelict Logs Recovered 12 | . . . . . . . . 1 2 2 2 . . . 2 1 . 2 . . . . . . . . . . . . . Drone Launches . | . . . . . . . . . . . . . . . . . . . . . . . . . . . . . . . . Drone Recoveries . | . . . . . . . . . . . . . . . . . . . . . . . . . . . . . . . . Exploration | -11 -10 -10 -9 -9 -9 -9 -6 -6 -6 -6 -5 -5 -5 -5 -5 -5 -5 -4 -4 -4 -4 -4 -4 -4 -4 -3 -3 -3 -2 -2 -2 ------------- Run | Yrd Mat Min Mat Sto Rec Scr Fac Low Low Zio Pro Fac Was Fac Upp Upp Zhi Pro Fac Was Fac Ext Cet Arc Hub Res Tes Gar Res Qua Frg Turns Passed 36639 | 69 1345 164 2039 1436 795 3004 3087 389 560 893 453 2400 253 1319 805 299 198 215 1471 198 2137 684 398 694 547 1028 1513 768 2134 1529 3815 Spaces Moved 23506 | 45 554 71 1359 852 622 2169 1793 421 550 1012 436 1472 207 912 590 245 185 173 933 139 1318 562 179 216 379 767 963 584 1083 884 1831 Core 215 | 13 . . . . . . 16 . . . . . . . . . . . . . . . . 186 . . . . . . . Treads 4421 | 32 554 71 63 . . . . . . . . . . 7 2 . 1 . 1 . 112 . 3 . . . 182 . 678 884 1831 Legs 1874 | . . . 1296 576 . . . . . . . . . . 2 . . . . . . . . . . . . . . . . Wheels 12396 | . . . . . . . 244 421 550 1012 436 1472 207 905 586 245 184 173 932 139 1206 562 176 30 379 767 781 584 405 . . Hover 1123 | . . . . . . . 1123 . . . . . . . . . . . . . . . . . . . . . . . . Flight 3477 | . . . . 276 622 2169 410 . . . . . . . . . . . . . . . . . . . . . . . . Fastest Speed 31 | 50 160 160 120 101 101 31 48 70 80 70 80 80 80 80 90 90 90 90 90 90 100 100 100 100 100 90 100 100 100 147 147 Average Speed 113 | 128 160 160 121 130 101 128 114 79 80 79 80 80 80 88 95 90 90 90 96 98 111 100 102 315 100 100 126 100 129 147 147 Slowest Speed 350 | 160 160 160 160 320 101 171 250 80 80 80 80 90 80 240 240 90 240 90 240 100 240 100 240 350 100 150 240 100 147 215 240 Overloaded Moves . | . . . . . . . . . . . . . . . . . . . . . . . . . . . . . . . . Propulsion Burnouts . | . . . . . . . . . . . . . . . . . . . . . . . . . . . . . . . . Robots Hopped . | . . . . . . . . . . . . . . . . . . . . . . . . . . . . . . . . Potential Cave-ins . | . . . . . . . . . . . . . . . . . . . . . . . . . . . . . . . . Cave-ins Triggered . | . . . . . . . . . . . . . . . . . . . . . . . . . . . . . . . . Teleports 1 | . . . . . . . . . . . . . . . . . . . . . . . . . . . . . . . 1 Exploration Rate (%) 64 | 5 81 31 93 95 91 89 46 78 86 85 77 37 90 23 72 49 60 43 30 80 38 87 69 76 61 33 87 75 37 85 59 Regions Visited 31 Branch Regions 19 Pre-discovered Areas 34 | . 1 . 1 2 11 4 3 1 1 3 . 1 . . 1 . 3 . . . 1 . . . . . . . 1 . . Known Exits Taken 26 | 1 1 1 1 1 1 1 1 1 1 1 1 . . 1 1 1 1 1 . . 1 1 1 1 1 1 1 . 1 1 . Unknown Exits Taken . | . . . . . . . . . . . . . . . . . . . . . . . . . . . . . . . . Scrap Searched 26 | . . . . . . 6 . 4 6 2 2 . . . 3 2 . 1 . . . . . . . . . . . . . Spaces Dug 114 | . . . . . . . 12 1 . . . 6 . 5 1 . . 2 12 . 18 3 . . 1 2 15 12 3 14 7 Terrain Destroyed 845 | 3 7 . 32 38 10 . 23 8 5 . 6 19 2 50 2 16 . 5 142 13 95 6 3 1 9 14 41 101 62 39 93 Melee 2 | . . . . . . . . . . . . 1 . . . . . . . . 1 . . . . . . . . . . Projectile 506 | . . . . . . . 16 2 5 . 6 18 2 22 2 16 . 5 57 13 55 6 3 1 9 14 41 19 62 39 93 AOE 337 | 3 7 . 32 38 10 . 7 6 . . . . . 28 . . . . 85 . 39 . . . . . . 82 . . . Terrain Rammed . | . . . . . . . . . . . . . . . . . . . . . . . . . . . . . . . . Walls Destroyed . | . . . . . . . . . . . . . . . . . . . . . . . . . . . . . . . . Machines Disabled . | . . . . . . . . . . . . . . . . . . . . . . . . . . . . . . . . Actions | -11 -10 -10 -9 -9 -9 -9 -6 -6 -6 -6 -5 -5 -5 -5 -5 -5 -5 -4 -4 -4 -4 -4 -4 -4 -4 -3 -3 -3 -2 -2 -2 --------- Run | Yrd Mat Min Mat Sto Rec Scr Fac Low Low Zio Pro Fac Was Fac Upp Upp Zhi Pro Fac Was Fac Ext Cet Arc Hub Res Tes Gar Res Qua Frg Total 31361 | 52 977 118 1616 1065 781 2389 2646 460 650 1102 510 2463 292 1316 812 298 213 223 1367 179 1835 664 374 225 498 960 1190 697 1621 1080 2688 Wait 3695 | . 359 44 59 94 142 179 521 5 37 61 11 523 56 139 172 18 8 42 128 5 219 65 156 4 45 56 70 15 199 40 223 Move 23477 | 44 553 70 1358 851 621 2168 1792 420 549 1011 435 1472 206 911 589 244 184 172 933 138 1317 561 178 215 378 766 963 582 1082 883 1831 Hop . | . . . . . . . . . . . . . . . . . . . . . . . . . . . . . . . . Pick Up 140 | 1 3 . 10 6 4 7 23 1 . 2 2 17 5 12 3 . 1 . 10 2 10 . . . . 1 2 . 6 3 9 Fast Attach 279 | 5 1 . 13 7 . 8 30 4 . 12 . 23 2 14 5 . 7 . 18 1 12 . 6 . 5 19 24 . 10 21 32 Attach 40 | . . . 1 1 . 2 9 . . 1 1 4 . 3 . . . . 2 1 5 . . . . 1 . . 2 3 4 Detach 19 | . . . 1 . . . 6 . . . . 1 . 1 . . . . 2 . 1 . . . . . 1 . 1 1 4 Swap 121 | . . . 4 2 . 2 18 2 . . 3 11 2 10 5 . 1 . 7 1 19 1 3 . 3 3 3 5 7 1 8 Drop 376 | . 4 . 15 12 4 15 50 2 . 14 1 35 6 25 7 . 8 . 24 1 21 . 6 . 5 19 27 . 17 24 34 Fire 2129 | 2 37 4 116 73 4 . 128 13 24 1 40 224 8 128 18 26 2 9 151 25 154 20 20 4 47 66 76 70 221 82 336 Melee 30 | . . . . . . 1 . . . . 1 21 . . . . . . . . 3 . . . 1 1 . 1 1 . . Ram 1 | . . . . 1 . . . . . . . . . . . . . . . . . . . . . . . . . . . Kick . | . . . . . . . . . . . . . . . . . . . . . . . . . . . . . . . . Crush 3 | . 2 . . . . . . . . . . . . . . . . . . . . . . . . . 1 . . . . Escape Stasis 16 | . . . . . . . . . . . . 8 . . . . . . . . 8 . . . . . . . . . . Rewire 46 | . . . 6 . . . . . 30 . 6 . . . . . . . . . . . . . . . 4 . . . . Trap 10 | . . . . . . . 8 . . . . 2 . . . . . . . . . . . . . . . . . . . Miscellaneous 979 | . 18 . 33 18 6 7 61 13 10 . 10 122 7 73 13 10 2 . 92 5 66 17 5 2 14 28 19 24 75 22 207 Route ------- -11/Scrapyard -10/Materials (discovered 6 exits: *Mat x3 / *Min x2 / *Sub) -10/Mines (discovered 4 exits: *Mat x2 / Exi / *Sub) -9/Materials (discovered 6 exits: *Mat x3 / *Min x2 / *Sto) -9/Storage (discovered 2 exits: *Mat / *Rec) -9/Recycling (discovered 2 exits: *Fac / *Scr) -9/Scraptown (discovered 2 exits: *Fac x2) -6/Factory (discovered 6 exits: *Fac x4 / *Low x2) -6/Lower Caves -6/Lower Caves (discovered 2 exits: *Fac / *Zio) -6/Zion -5/Proximity Caves -5/Factory (discovered 4 exits: *Fac x2 / *Upp x2) -5/Waste -5/Factory (discovered 4 exits: *Fac x2 / *Upp x2) -5/Upper Caves -5/Upper Caves (discovered 2 exits: Fac / *Zhi) -5/Zhirov -4/Proximity Caves -4/Factory (discovered 6 exits: *Res x2 / Upp x2 / *Ext x2) -4/Waste -4/Factory (discovered 7 exits: Res x3 / Upp x2 / *Ext x2) -4/Extension (discovered 3 exits: *Res x2 / *Cet) -4/Cetus (discovered 2 exits: *Res / *Arc) -4/Archives (discovered 3 exits: *Res / *Hub x2) -4/Hub_04(d) (discovered 2 exits: *Res x2) -3/Research (discovered 5 exits: Res x2 / Arm / *Tes x2) -3/Testing (discovered 2 exits: *Res / Gar) -3/Garrison (discovered 3 exits: *Res x3) -2/Research (discovered 4 exits: *Acc x2 / *Qua x2) -2/Quarantine (discovered 3 exits: *Acc / *Sec / *Frg) -2/Protoforge (discovered 1 exit: Acc) History --------- Turn | Location | Event 1 | -11/Scrapyard | Upgraded with Propulsion slot (x1) 1 | -11/Scrapyard | Upgraded with Utility slot (x1) 4 | -11/Scrapyard | Identified exit to Materials 4 | -11/Scrapyard | Discovered exit to Materials (range 17) 70 | -11/Scrapyard | Entered Materials 266 | -10/Materials | Identified exit to Mines 266 | -10/Materials | Discovered exit to Mines (range 17) 314 | -10/Materials | Identified exit to Materials 314 | -10/Materials | Discovered exit to Materials (range 15) 318 | -10/Materials | Build established: Hacker-Mutant 584 | -10/Materials | Discovered exit to Materials (range 11) 800 | -10/Materials | Discovered exit to Mines (range 8) 840 | -10/Materials | Identified exit to Subcaves 840 | -10/Materials | Discovered exit to Subcaves (range 7) 983 | -10/Materials | Learned 4 Recycling zone layouts 1052 | -10/Materials | Learned location of 1 exit from Recycling 1220 | -10/Materials | Learned 2 Mines zone layouts 1263 | -10/Materials | Learned location of 1 exit from Recycling 1342 | -10/Materials | Learned location of Recycling (-9) 1394 | -10/Materials | Loaded intel: 11 trap records 1415 | -10/Materials | Entered Mines 1417 | -10/Mines | Identified exit to Exiles 1453 | -10/Mines | Assembled infested the area 1484 | -10/Mines | Discovered exit to Subcaves (range 6) 1568 | -10/Mines | Reached level 2 1579 | -10/Mines | Entered Materials 1579 | -9/Materials | Upgraded with Utility slot (x1) 1579 | -9/Materials | Upgraded with Weapon slot (x1) 1580 | -9/Materials | Identified exit to Mines 1581 | -9/Materials | Reached level 3 1581 | -9/Materials | Identified exit to Storage 1581 | -9/Materials | Discovered exit to Storage (range 13) 1902 | -9/Materials | Reached level 4 2320 | -9/Materials | Reached level 5 2499 | -9/Materials | Identified exit to Materials 2499 | -9/Materials | Discovered exit to Materials (range 9) 2748 | -9/Materials | Upgraded with Propulsion slot (x2) 2748 | -9/Materials | Upgraded with Utility slot (x1) 3040 | -9/Materials | Learned location of 2 exits from Materials 3238 | -9/Materials | Reached level 6 3618 | -9/Materials | Entered Storage 3620 | -9/Storage | Reached level 7 3624 | -9/Storage | Upgraded with Power slot (x1) 3624 | -9/Storage | Upgraded with Weapon slot (x1) 3931 | -9/Storage | Identified exit to Recycling 4066 | -9/Storage | Build established: Hacker-Tank 4166 | -9/Storage | Learned Materials trap positions 4246 | -9/Storage | Learned Materials trap positions 4267 | -9/Storage | Learned 4 Recycling zone layouts 4299 | -9/Storage | Learned location of Zion (-6) 4363 | -9/Storage | Reached level 8 4427 | -9/Storage | Upgraded with Weapon slot (x1) 5052 | -9/Storage | Used back door to open Recycling access 5054 | -9/Storage | Entered Recycling 5055 | -9/Recycling | Identified exit to Factory 5055 | -9/Recycling | Identified exit to Scraptown 5056 | -9/Recycling | Reached level 9 5607 | -9/Recycling | Learned location of 1 exit from Recycling 5673 | -9/Recycling | Learned Storage garrison access intel 5690 | -9/Recycling | Learned location of 2 exits from Materials 5748 | -9/Recycling | Scanned before Scraplab entrance 5755 | -9/Recycling | Learned Storage stockpile data 5839 | -9/Recycling | Entered Scraplab 5849 | -9/Recycling | Entered Scraptown 5989 | -9/Scraptown | Visited Cyclists 6013 | -9/Scraptown | Visited Cave Peace 6023 | -9/Scraptown | Visited Assassins FH 6058 | -9/Scraptown | Visited Awakened 6073 | -9/Scraptown | Visited Shadow of the Wyrm 6445 | -9/Scraptown | Identified exit to Factory 6445 | -9/Scraptown | Discovered exit to Factory (range 11) 6601 | -9/Scraptown | Visited UFD Registry 6604 | -9/Scraptown | Registered with UFD as "Electroslasher" 6647 | -9/Scraptown | Visited Scrap Suit Storage 6671 | -9/Scraptown | Visited Supply Room 6762 | -9/Scraptown | Visited Supply Room 6791 | -9/Scraptown | Visited Scrapoid Pod Storage 6818 | -9/Scraptown | Visited DA-N13 Charitable Foundation 6833 | -9/Scraptown | Found DCF Scrap (31 items) 6869 | -9/Scraptown | Visited Science Testing Area 6905 | -9/Scraptown | Visited Cartography Club 7074 | -9/Scraptown | Learned location of Upper Caves (-5) 7074 | -9/Scraptown | Learned location of Warlord (-4) 7074 | -9/Scraptown | Learned location of Armory (-3) 7074 | -9/Scraptown | Learned 12 Factory zone layouts 7074 | -9/Scraptown | Learned 24 Factory zone layouts 7074 | -9/Scraptown | Learned 16 Research zone layouts 7074 | -9/Scraptown | Learned 4 Access zone layouts 7074 | -9/Scraptown | Learned 8 Access zone layouts 7074 | -9/Scraptown | Learned 8 Lower Caves zone layouts 7074 | -9/Scraptown | Learned 12 Lower Caves zone layouts 7074 | -9/Scraptown | Learned 12 Upper Caves zone layouts 7074 | -9/Scraptown | Learned 20 Upper Caves zone layouts 7074 | -9/Scraptown | Learned 4 Hub_04(d) zone layouts 7074 | -9/Scraptown | Learned location of 1 exit from Factory 7074 | -9/Scraptown | Learned location of 2 exits from Factory 7074 | -9/Scraptown | Learned location of 3 exits from Upper Caves 7077 | -9/Scraptown | Found Deep Structural Scanner 7620 | -9/Scraptown | Found Scrapoid Pod 7926 | -9/Scraptown | Build established: Hacker-Skirmisher 8000 | -9/Scraptown | Entered Cyclist Reading Room 8143 | -9/Scraptown | Upgraded with Utility slot (x1) 8474 | -9/Scraptown | Build established: Hacker-Tank 8766 | -9/Scraptown | Met Optimus 8766 | -9/Scraptown | Accepted into 0bPrime 8839 | -9/Scraptown | Discovered exit to Factory (range 9) 8853 | -9/Scraptown | Entered Factory 8854 | -6/Factory | Identified exit to Factory 8854 | -6/Factory | Identified exit to Lower Caves 8855 | -6/Factory | Reached level 10 8855 | -6/Factory | Reached level 11 8855 | -6/Factory | Reached level 12 8857 | -6/Factory | Upgraded with Utility slot (x2) 9344 | -6/Factory | Build established: Wizard-Skirmisher 9371 | -6/Factory | Loaded intel: 8 recycling unit locations 9472 | -6/Factory | Reached level 13 9637 | -6/Factory | Repaired Broken Cld. Ion Engine 9739 | -6/Factory | Loaded intel: 120 trap records 9770 | -6/Factory | Learned location of 2 exits from Factory 9780 | -6/Factory | Fabricated Cmb. Gravmag System (x2) 9799 | -6/Factory | Learned location of 2 exits from Archives 9800 | -6/Factory | Learned 4 Lower Caves zone layouts 9801 | -6/Factory | Learned 8 Factory zone layouts 9802 | -6/Factory | Learned Extension emergency access door positions 9803 | -6/Factory | Loaded intel: 4 scanalyzer locations 9813 | -6/Factory | Learned Extension trap positions 9988 | -6/Factory | Build established: Wizard-Scout 10065 | -6/Factory | Garrison activated, responded to threat 10066 | -6/Factory | Scrapoid Pod released 06F05-D (x5) 10066 | -6/Factory | Cargo convoy interrupted 10089 | -6/Factory | Reached level 14 10114 | -6/Factory | Lost 3 allies 10145 | -6/Factory | Found Prototype Protection 10145 | -6/Factory | Identified Centrium Heavy Armor Plating 10168 | -6/Factory | Garrison activated, responded to threat 10501 | -6/Factory | Build established: Wizard-Gunner 10579 | -6/Factory | Repaired Broken Cld. Antigrav System 10718 | -6/Factory | Repaired Broken Nanosword? 10780 | -6/Factory | Fabricated M-28 Smith (x1) 10877 | -6/Factory | Discovered exit to Lower Caves (range 16) 11037 | -6/Factory | Learned location of Protoforge (-2) 11056 | -6/Factory | Build established: Wizard-Skirmisher 11192 | -6/Factory | Reached level 15 11445 | -6/Factory | Fabricated Hyb. Fission Core (x2) 11688 | -6/Factory | Scrapoid reinforcements arrived 11705 | -6/Factory | Found Scrap Suit 11731 | -6/Factory | Reached level 16 11759 | -6/Factory | Fabricated Cld. Antigrav System (x1) 11908 | -6/Factory | Reached level 17 11910 | -6/Factory | Upgraded with Utility slot (x1) 11912 | -6/Factory | Lost 4 allies 11929 | -6/Factory | Destroyed 7 combat bots 11940 | -6/Factory | Entered Lower Caves 11941 | -6/Lower Caves | Encountered a Warlord checkpoint 11941 | -6/Lower Caves | Identified exit to Lower Caves 11994 | -6/Lower Caves | Build established: Wizard-Scrapper 12027 | -6/Lower Caves | Found Alien Artifact 12027 | -6/Lower Caves | Identified Core Expander 12027 | -6/Lower Caves | Installed Core Expander, added new Power slot 12246 | -6/Lower Caves | Entered a destroyed Warlord outpost 12329 | -6/Lower Caves | Entered another Lower Caves area 12330 | -6/Lower Caves | Identified exit to Zion 12357 | -6/Lower Caves | Discovered exit to Factory (range 16) 12453 | -6/Lower Caves | Attracted the attention of an 0b10 checkpoint 12456 | -6/Lower Caves | Reached level 18 12686 | -6/Lower Caves | Attracted the attention of an 0b10 outpost 12746 | -6/Lower Caves | Destroyed 9 combat bots 12889 | -6/Lower Caves | Entered Zion 12889 | -6/Zion | Accompanied by 2 allies 12941 | -6/Zion | System corruption cleaned by Quarantine Array 13010 | -6/Zion | Given the Hacking Drone Bay 13016 | -6/Zion | Found Prototype Device 13016 | -6/Zion | Identified Hacking Drone Bay 13056 | -6/Zion | Learned 4 Factory zone layouts 13083 | -6/Zion | Learned location of Testing (-3) 13138 | -6/Zion | Learned Factory garrison access intel 13188 | -6/Zion | Turned away by Imprinter 13332 | -6/Zion | Found CR-A16's Pointy Stick 13364 | -6/Zion | Given A8's code to call for help 13412 | -6/Zion | Found Prototype Energy Gun 13412 | -6/Zion | Identified Storm Laser 13770 | -6/Zion | Identified exit to Proximity Caves 13770 | -6/Zion | Discovered exit to Proximity Caves (range 9) 13782 | -6/Zion | Entered Proximity Caves 13782 | -5/Proximity Caves | Accompanied by 2 allies 13784 | -5/Proximity Caves | Reached level 19 13786 | -5/Proximity Caves | Upgraded with Utility slot (x1) 13839 | -5/Proximity Caves | Attracted the attention of an 0b10 outpost 13860 | -5/Proximity Caves | Reached level 20 13891 | -5/Proximity Caves | Destroyed 9 combat bots 13892 | -5/Proximity Caves | Learned Factory non-interactive machine intel 14152 | -5/Proximity Caves | Learned location of 1 exit from Upper Caves 14178 | -5/Proximity Caves | Discovered exit to Factory (range 17) 14235 | -5/Proximity Caves | Entered Factory 14235 | -5/Factory | Accompanied by 4 allies 14236 | -5/Factory | Identified exit to Upper Caves 14237 | -5/Factory | Identified exit to Factory 14239 | -5/Factory | Loaded intel: 236 non-interactive machine locations 14240 | -5/Factory | Loaded intel: 3 garrison access locations 14259 | -5/Factory | Reached level 21 14298 | -5/Factory | Upgraded with Utility slot (x1) 14496 | -5/Factory | Fabricated X-72 Disruptor (x2) 14593 | -5/Factory | Lost 3 allies 14598 | -5/Factory | Fabricated Com. Particle Reactor? 14849 | -5/Factory | Repaired Broken Exp. Cooling System 15060 | -5/Factory | Garrison activated, responded to threat 15100 | -5/Factory | Learned location of 1 exit from Testing 15102 | -5/Factory | Cargo convoy interrupted 15125 | -5/Factory | Learned Extension trap positions 15139 | -5/Factory | Learned Research emergency access door positions 15141 | -5/Factory | Learned Research trap positions 15155 | -5/Factory | Learned location of Quarantine (-2) 15163 | -5/Factory | Found Prototype Device 15163 | -5/Factory | Identified Exp. EM Shield 15171 | -5/Factory | Found Prototype Launcher 15171 | -5/Factory | Identified Tactical Quantum Warhead 15174 | -5/Factory | Found Prototype Launcher 15174 | -5/Factory | Identified Adv. Micro-nuke Launcher 15179 | -5/Factory | Learned Armory stockpile data 15212 | -5/Factory | Learned Extension stockpile data 15241 | -5/Factory | Spotted B-75 Beast 15274 | -5/Factory | Revealed the true nature of CR-A16's Pointy Stick 15277 | -5/Factory | Destroyed B-75 Beast 15379 | -5/Factory | Reached level 22 15439 | -5/Factory | Destroyed 11 combat bots 15611 | -5/Factory | Destroyed 10 combat bots 15703 | -5/Factory | Identified exit to Garrison 15789 | -5/Factory | Loaded intel: 8 recycling unit locations 15911 | -5/Factory | Destroyed 8 combat bots 16035 | -5/Factory | Reached level 23 16037 | -5/Factory | Upgraded with Utility slot (x1) 16635 | -5/Factory | Sucked down chute 16635 | -5/Factory | Entered Waste 16651 | -5/Waste | Spotted C-40 Crusher 16659 | -5/Waste | Destroyed C-40 Crusher 16695 | -5/Waste | Warlord forces began an assault 16701 | -5/Waste | Found Prototype Device 16701 | -5/Waste | Identified Exp. Phase Shifter 16730 | -5/Waste | Spotted C-40 Crusher 16730 | -5/Waste | Spotted C-40 Crusher 16733 | -5/Waste | Allies destroyed C-40 Crusher 16735 | -5/Waste | Allies destroyed C-40 Crusher 16742 | -5/Waste | Spotted C-40 Crusher 16744 | -5/Waste | Spotted C-40 Crusher 16749 | -5/Waste | Destroyed C-40 Crusher 16764 | -5/Waste | Allies destroyed C-40 Crusher 16813 | -5/Waste | Identified exit to Factory 16813 | -5/Waste | Discovered exit to Factory (range 16) 16823 | -5/Waste | Lost 7 allies 16888 | -5/Waste | Entered Factory 16888 | -5/Factory | Accompanied by 9 allies 17005 | -5/Factory | Loaded intel: 8 recycling unit locations 17117 | -5/Factory | Discovered exit to Factory (range 17) 17343 | -5/Factory | Fabricated Ovr. Beamcaster (x1) 17404 | -5/Factory | Fabricated Ovr. Beamcaster (x1) 17451 | -5/Factory | Cargo convoy interrupted 17467 | -5/Factory | P-70 Sage assimilated allied A6-IQN(g) 17488 | -5/Factory | First assault squad dispatched 17494 | -5/Factory | Found Prototype Launcher 17495 | -5/Factory | Identified Enh. Gamma Bomb Array 17497 | -5/Factory | Destroyed 7 combat bots 17503 | -5/Factory | Fabricated Exp. Cooling System (x1) 17594 | -5/Factory | Scraphulk reinforcements arrived 17731 | -5/Factory | Reached level 24 17751 | -5/Factory | Fabricated CPS Tube (x1) 17836 | -5/Factory | Scraphulk reinforcements arrived 17925 | -5/Factory | Core integrity fell below 50% 17959 | -5/Factory | Discovered exit to Factory (range 17) 18207 | -5/Factory | Entered Upper Caves 18207 | -5/Upper Caves | Accompanied by 4 allies 18208 | -5/Upper Caves | Identified exit to Upper Caves 18251 | -5/Upper Caves | Ambushed by research squad 18320 | -5/Upper Caves | Learned Armory emergency access door positions 18320 | -5/Upper Caves | Learned Research terminal intel 18320 | -5/Upper Caves | A Commander dispatched an escort 18578 | -5/Upper Caves | Attracted the attention of an 0b10 base 18721 | -5/Upper Caves | Learned location of 2 exits from Lower Caves 18721 | -5/Upper Caves | Learned Armory trap positions 18721 | -5/Upper Caves | Learned 8 Factory zone layouts 18721 | -5/Upper Caves | Learned Extension emergency access door positions 18721 | -5/Upper Caves | Learned Extension stockpile data 18728 | -5/Upper Caves | Learned Factory garrison access intel 19012 | -5/Upper Caves | Entered another Upper Caves area 19012 | -5/Upper Caves | Accompanied by 3 allies 19012 | -5/Upper Caves | Discovered exit to Factory (range 9) 19013 | -5/Upper Caves | Identified exit to Zhirov 19032 | -5/Upper Caves | Attracted the attention of an 0b10 base 19093 | -5/Upper Caves | Destroyed 11 combat bots 19102 | -5/Upper Caves | Learned Armory trap positions 19102 | -5/Upper Caves | Learned Research emergency access door positions 19102 | -5/Upper Caves | Learned Factory terminal intel 19102 | -5/Upper Caves | Learned Research terminal intel 19146 | -5/Upper Caves | Attracted the attention of an 0b10 checkpoint 19311 | -5/Upper Caves | Entered Zhirov 19311 | -5/Zhirov | Accompanied by 3 allies 19311 | -5/Zhirov | Identified exit to Proximity Caves 19311 | -5/Zhirov | Discovered exit to Proximity Caves (range 3) 19330 | -5/Zhirov | Met Zhirov 19345 | -5/Zhirov | Learned location of Command (-1) 19353 | -5/Zhirov | Zhirov requested help retrieving the SGEMP Prototype 19368 | -5/Zhirov | Found Alien Artifact 19368 | -5/Zhirov | Identified Integrated Reactor 19368 | -5/Zhirov | Installed Integrated Reactor, increased core energy generation (+10) 19440 | -5/Zhirov | Found Alien Artifact 19509 | -5/Zhirov | Entered Proximity Caves 19509 | -4/Proximity Caves | Accompanied by 3 allies 19511 | -4/Proximity Caves | Reached level 25 19568 | -4/Proximity Caves | Learned location of 1 exit from Research 19572 | -4/Proximity Caves | Learned location of 1 exit from Research 19697 | -4/Proximity Caves | Discovered exit to Factory (range 16) 19724 | -4/Proximity Caves | Entered Factory 19724 | -4/Factory | Accompanied by 3 allies 19725 | -4/Factory | Identified exit to Research 19725 | -4/Factory | Identified exit to Upper Caves 19726 | -4/Factory | Identified exit to Extension 19727 | -4/Factory | Loaded intel: 25 terminal locations 19728 | -4/Factory | Loaded intel: 3 garrison access locations 19756 | -4/Factory | Found Prototype Launcher 19756 | -4/Factory | Identified Com. Tesla Bomb Launcher 19914 | -4/Factory | Loaded intel: 8 recycling unit locations 20080 | -4/Factory | Reached level 26 20154 | -4/Factory | Discovered exit to Extension (range 4) 20224 | -4/Factory | First assault squad dispatched 20669 | -4/Factory | Destroyed 8 combat bots 20720 | -4/Factory | Discovered exit to Research (range 12) 20896 | -4/Factory | Destroyed 14 combat bots 20951 | -4/Factory | Destroyed 7 combat bots 21015 | -4/Factory | Found Prototype Hackware 21015 | -4/Factory | Identified Exp. Hacking Suite 21044 | -4/Factory | Found Prototype Device 21044 | -4/Factory | Identified Adv. EM Shield 21146 | -4/Factory | Identified Transdimensional Reconstructor 21195 | -4/Factory | Sucked down chute 21195 | -4/Factory | Entered Waste 21196 | -4/Waste | Met a frightened Derelict 21210 | -4/Waste | EMP discharged 21220 | -4/Waste | Spotted C-40 Crusher 21224 | -4/Waste | Destroyed C-40 Crusher 21231 | -4/Waste | Spotted C-40 Crusher 21236 | -4/Waste | Spotted C-40 Crusher 21237 | -4/Waste | Spotted C-40 Crusher 21261 | -4/Waste | Destroyed C-40 Crusher 21269 | -4/Waste | Destroyed C-40 Crusher 21276 | -4/Waste | Destroyed C-40 Crusher 21276 | -4/Waste | Spotted C-40 Crusher 21280 | -4/Waste | Destroyed C-40 Crusher 21286 | -4/Waste | Spotted C-40 Crusher 21289 | -4/Waste | Destroyed C-40 Crusher 21310 | -4/Waste | EMP discharged 21349 | -4/Waste | Identified exit to Factory 21349 | -4/Waste | Discovered exit to Factory (range 17) 21393 | -4/Waste | Entered Factory 21416 | -4/Factory | Loaded intel: 8 recycling unit locations 21466 | -4/Factory | Identified exit to DSF 21645 | -4/Factory | Reached level 27 21648 | -4/Factory | Upgraded with Utility slot (x1) 21774 | -4/Factory | Discovered exit to Extension (range 9) 22047 | -4/Factory | Fabricated Ovr. Phase Cannon (x1) 22100 | -4/Factory | Cargo convoy interrupted 22105 | -4/Factory | Spotted Executioner 22113 | -4/Factory | Destroyed Executioner 22131 | -4/Factory | Found Prototype Device 22132 | -4/Factory | Identified Exp. Focal Shield 22161 | -4/Factory | Found Prototype Processor 22162 | -4/Factory | Identified Exp. Melee Analysis Suite 22222 | -4/Factory | Found Prototype Processor 22223 | -4/Factory | Identified Exp. Core Analyzer 22513 | -4/Factory | Fabricated Graviton Cannon (x1) 22910 | -4/Factory | Discovered exit to Research (range 14) 23002 | -4/Factory | Destroyed 7 combat bots 23052 | -4/Factory | Learned 8 Factory zone layouts 23056 | -4/Factory | Spotted B-86 Titan 23062 | -4/Factory | Learned location of 1 exit from Research 23064 | -4/Factory | Learned location of 1 exit from Research 23065 | -4/Factory | Learned Testing terminal intel 23068 | -4/Factory | Loaded intel: 6 repair station locations 23068 | -4/Factory | Destroyed B-86 Titan 23077 | -4/Factory | Spotted B-86 Titan 23079 | -4/Factory | Learned Armory non-interactive machine intel 23116 | -4/Factory | Destroyed B-86 Titan 23307 | -4/Factory | Fabricated Adv. System Restoration Module (x2) 23530 | -4/Factory | Entered Extension 23531 | -4/Extension | Loaded intel: 19 trap records 23648 | -4/Extension | Rescued A7 23736 | -4/Extension | Rescued a captive Derelict 23774 | -4/Extension | Rescued a captive Derelict 23822 | -4/Extension | Spotted B-86 Titan 23828 | -4/Extension | Discovered exit to Research (range 18) 23828 | -4/Extension | Spotted B-86 Titan 23835 | -4/Extension | Destroyed B-86 Titan 23867 | -4/Extension | Allies destroyed B-86 Titan 24056 | -4/Extension | Rescued a captive Derelict 24101 | -4/Extension | Discovered exit to Research (range 10) 24102 | -4/Extension | Identified exit to Cetus 24102 | -4/Extension | Discovered exit to Cetus (range 6) 24214 | -4/Extension | Entered Cetus 24214 | -4/Cetus | Accompanied by 4 allies (A7) 24219 | -4/Cetus | Acquired a Cetus Manufacturing Module code from A7 24228 | -4/Cetus | Spotted Cetus Guard 24229 | -4/Cetus | Spotted Cetus Guard 24231 | -4/Cetus | Destroyed Cetus Guard 24232 | -4/Cetus | Spotted Cetus Guard 24234 | -4/Cetus | Spotted Cetus Guard 24241 | -4/Cetus | Reached level 28 24241 | -4/Cetus | Allies destroyed Cetus Guard 24241 | -4/Cetus | Allies destroyed Cetus Guard 24243 | -4/Cetus | Allies destroyed Cetus Guard 24350 | -4/Cetus | Started Cetus Manufacturing Module 24358 | -4/Cetus | Escorted A7 to Cetus Mainframe 24374 | -4/Cetus | Identified exit to Archives 24374 | -4/Cetus | Discovered exit to Archives (range 16) 24375 | -4/Cetus | Manufactured an Enhanced Grunt 24400 | -4/Cetus | Manufactured an Enhanced Grunt 24425 | -4/Cetus | Manufactured an Enhanced Grunt 24450 | -4/Cetus | Manufactured an Enhanced Grunt 24475 | -4/Cetus | Manufactured an Enhanced Grunt 24521 | -4/Cetus | Spotted Cetus Guard 24521 | -4/Cetus | Spotted Cetus Guard 24525 | -4/Cetus | Spotted Cetus Guard 24527 | -4/Cetus | Spotted Cetus Guard 24528 | -4/Cetus | Destroyed Cetus Guard 24533 | -4/Cetus | Allies destroyed Cetus Guard 24537 | -4/Cetus | Destroyed Cetus Guard 24542 | -4/Cetus | Allies destroyed Cetus Guard 24546 | -4/Cetus | Discovered exit to Research (range 17) 24553 | -4/Cetus | Met Revision 17 24612 | -4/Cetus | Entered Archives 24612 | -4/Archives | Accompanied by 8 allies (A7) 24613 | -4/Archives | Identified exit to Hub_04(d) 24617 | -4/Archives | Received a hacking code to weaken MAIN.C 24828 | -4/Archives | Discovered exit to Research (range 17) 25306 | -4/Archives | Entered Hub_04(d) 25306 | -4/Hub_04(d) | Accompanied by 7 allies 25379 | -4/Hub_04(d) | Spotted B-86 Titan 25381 | -4/Hub_04(d) | Destroyed B-86 Titan 25429 | -4/Hub_04(d) | Network Hub disabled 25485 | -4/Hub_04(d) | Spotted Lightning 25489 | -4/Hub_04(d) | Destroyed Lightning 25529 | -4/Hub_04(d) | Found Prototype Processor 25529 | -4/Hub_04(d) | Identified Exp. Targeting Computer 25603 | -4/Hub_04(d) | Network Hub disabled 25625 | -4/Hub_04(d) | Lost 3 allies 25630 | -4/Hub_04(d) | Network Hub disabled 25654 | -4/Hub_04(d) | Spotted Lightning 25668 | -4/Hub_04(d) | Spotted Lightning 25675 | -4/Hub_04(d) | Spotted Lightning 25691 | -4/Hub_04(d) | Destroyed Lightning 25695 | -4/Hub_04(d) | Destroyed Lightning 25719 | -4/Hub_04(d) | Found Prototype Energy Cannon 25719 | -4/Hub_04(d) | Identified EMDS 25809 | -4/Hub_04(d) | Spotted Lightning 25822 | -4/Hub_04(d) | Discovered exit to Research (range 9) 25822 | -4/Hub_04(d) | Network Hub disabled 25853 | -4/Hub_04(d) | Entered Research 25854 | -3/Research | Identified exit to Armory 25855 | -3/Research | Identified exit to Testing 25855 | -3/Research | Identified exit to Research 25855 | -3/Research | Reached level 29 25857 | -3/Research | Loaded intel: 68 trap records 25859 | -3/Research | Loaded intel: 20 terminal locations 25869 | -3/Research | Upgraded with Utility slot (x1) 25908 | -3/Research | Found Prototype Launcher 25908 | -3/Research | Identified Hellfire Missile Launcher 25931 | -3/Research | Found Prototype Hackware 25931 | -3/Research | Identified Exp. System Shield 25964 | -3/Research | Loaded intel: 5 recycling unit locations 26053 | -3/Research | Revision forces began assault on 0b10 26103 | -3/Research | Met up with Revision 17++ 26180 | -3/Research | Spotted B-86 Titan 26196 | -3/Research | Destroyed B-86 Titan 26345 | -3/Research | Spotted B-86 Titan 26347 | -3/Research | Destroyed B-86 Titan 26553 | -3/Research | Research terminal network offline 26586 | -3/Research | Fabricated Exp. Signal Interpreter (x1) 26617 | -3/Research | Fabricated Core Analyzer (x2) 26646 | -3/Research | Spotted Striker 26649 | -3/Research | Spotted Striker 26653 | -3/Research | Destroyed Striker 26662 | -3/Research | Destroyed Striker 26881 | -3/Research | Entered Testing 26883 | -3/Testing | Loaded intel: 7 terminal locations 26927 | -3/Testing | Found Prototype Energy Gun 26927 | -3/Testing | Identified Warp Gun 26975 | -3/Testing | Found Prototype Hackware 26975 | -3/Testing | Identified System Mapper 27020 | -3/Testing | Reached level 30 27209 | -3/Testing | Found Prototype Device 27209 | -3/Testing | Identified Exp. Thermal Shield 27304 | -3/Testing | Found Prototype Ballistic Cannon 27304 | -3/Testing | Identified Perforator 27440 | -3/Testing | Found Prototype Launcher 27441 | -3/Testing | Identified Z-bomb Delivery System 27558 | -3/Testing | Found Prototype Hackware 27558 | -3/Testing | Identified Ghost Barrier 27596 | -3/Testing | Found Prototype Ballistic Gun 27596 | -3/Testing | Identified Hyp. Multirail 27626 | -3/Testing | Found Prototype Device 27626 | -3/Testing | Identified AEGIS Remote Shield 27817 | -3/Testing | Destroyed 7 combat bots 28181 | -3/Testing | Rewired PY-VZK2WT4B6F 28333 | -3/Testing | Found Prototype Ballistic Cannon 28333 | -3/Testing | Identified Omega Cannon 28394 | -3/Testing | Identified exit to Garrison 28394 | -3/Testing | Entered Garrison 28471 | -3/Garrison | Discovered exit to Research (range 56) 28471 | -3/Garrison | Discovered exit to Research (range 60) 28471 | -3/Garrison | Discovered exit to Research (range 45) 28492 | -3/Garrison | Spotted B-86 Titan 28498 | -3/Garrison | Triggered checkpoint 28502 | -3/Garrison | Destroyed B-86 Titan 28504 | -3/Garrison | Triggered checkpoint 28540 | -3/Garrison | Destroyed 7 combat bots 28557 | -3/Garrison | Learned Research security intel 28574 | -3/Garrison | Triggered checkpoint 28580 | -3/Garrison | Triggered checkpoint 28670 | -3/Garrison | Triggered checkpoint 28707 | -3/Garrison | Installed Relay Interface Framework 28802 | -3/Garrison | Rescued a captive Derelict 28802 | -3/Garrison | Rescued a captive Derelict 28826 | -3/Garrison | Destroyed 7 combat bots 28964 | -3/Garrison | Phase Generator disabled 28994 | -3/Garrison | Triggered checkpoint 29162 | -3/Garrison | Entered Research 29164 | -2/Research | Reached level 31 29165 | -2/Research | Loaded intel: 24 terminal locations 29312 | -2/Research | Fabricated Adv. Weapon Cycler? 29331 | -2/Research | Identified exit to Access 29331 | -2/Research | Discovered exit to Access (range 15) 29358 | -2/Research | Loaded intel: 5 recycling unit locations 29412 | -2/Research | First assault squad dispatched 29745 | -2/Research | Reached level 32 29747 | -2/Research | Upgraded with Utility slot (x1) 29753 | -2/Research | Cargo convoy interrupted 29756 | -2/Research | Spotted Striker 29774 | -2/Research | Destroyed Striker 30086 | -2/Research | Identified exit to Quarantine 30147 | -2/Research | Build established: Wizard-Tank 30370 | -2/Research | Spotted B-90 Cyclops 30401 | -2/Research | Destroyed B-90 Cyclops 30539 | -2/Research | Fabricated Exp. Transmission Jammer? 30614 | -2/Research | Loaded intel: 62 non-interactive machine locations 30659 | -2/Research | Fabricated Adv. Weapon Cycler (x2) 30710 | -2/Research | Learned 8 Access zone layouts 30790 | -2/Research | Loaded intel: 4 fabricator locations 30793 | -2/Research | Scraphulk reinforcements arrived 30830 | -2/Research | Spotted B-90 Cyclops 30842 | -2/Research | Destroyed B-90 Cyclops 30900 | -2/Research | Spotted B-90 Cyclops 30902 | -2/Research | Destroyed B-90 Cyclops 30931 | -2/Research | Fabricated CPS Tube (x1) 30967 | -2/Research | Fabricated CPS Tube? 30984 | -2/Research | Reached level 33 31296 | -2/Research | Entered Quarantine 31421 | -2/Quarantine | Found Alien Artifact 31450 | -2/Quarantine | Cryocooling Duct disabled 31465 | -2/Quarantine | Ambient heat levels rising (+20) 31465 | -2/Quarantine | Non-combat units ordered to evacuate 31659 | -2/Quarantine | Found Alien Reactor 31659 | -2/Quarantine | Identified Matter Drive 31756 | -2/Quarantine | Identified Subatomic Replicator 31803 | -2/Quarantine | Spotted Alpha 7 31812 | -2/Quarantine | Destroyed Alpha 7 31819 | -2/Quarantine | Found Prototype Energy Gun 31819 | -2/Quarantine | Identified Enh. Gamma Rifle 31824 | -2/Quarantine | Found Prototype Ballistic Gun 31824 | -2/Quarantine | Identified Multirail 31845 | -2/Quarantine | Found Alien Launcher 31845 | -2/Quarantine | Identified Sigix Terminator 31847 | -2/Quarantine | Used Subatomic Replicator to create Alien Launcher 31852 | -2/Quarantine | Identified Supercharged Sigix Terminator 32341 | -2/Quarantine | Found Alien Impact Weapon 32341 | -2/Quarantine | Identified Core Stripper 32412 | -2/Quarantine | Found Alien Artifact 32503 | -2/Quarantine | Identified Core Reset Matrix 32658 | -2/Quarantine | Spotted Fortress 32663 | -2/Quarantine | Destroyed Fortress 32683 | -2/Quarantine | Found Prototype Reactor 32683 | -2/Quarantine | Identified Vortex Chain Reactor 32712 | -2/Quarantine | Found Centrium Heavy Armor Plating 32807 | -2/Quarantine | Identified exit to Section 7 32807 | -2/Quarantine | Discovered exit to Section 7 (range 12) 32813 | -2/Quarantine | Identified exit to Protoforge 32813 | -2/Quarantine | Discovered exit to Protoforge (range 10) 32825 | -2/Quarantine | Entered Protoforge 33040 | -2/Protoforge | Superfortress began startup sequence 33199 | -2/Protoforge | Spotted Hotshot 33204 | -2/Protoforge | Destroyed Hotshot 33208 | -2/Protoforge | Spotted Hotshot 33215 | -2/Protoforge | Destroyed Hotshot 33234 | -2/Protoforge | Reached level 34 33675 | -2/Protoforge | Learned Research fabricator intel 33693 | -2/Protoforge | Spotted Hotshot 33693 | -2/Protoforge | Spotted Hotshot 33699 | -2/Protoforge | Destroyed Hotshot 33719 | -2/Protoforge | Learned Research emergency access door positions 33725 | -2/Protoforge | Spotted AP7-3 33726 | -2/Protoforge | Spotted AP7-3 33727 | -2/Protoforge | Learned location of 3 exits from Research 33738 | -2/Protoforge | Destroyed AP7-3 33749 | -2/Protoforge | Destroyed AP7-3 33752 | -2/Protoforge | Spotted Hotshot 33755 | -2/Protoforge | Learned Research emergency access door positions 33757 | -2/Protoforge | Spotted Hotshot 33758 | -2/Protoforge | Destroyed Hotshot 33766 | -2/Protoforge | Destroyed Hotshot 33781 | -2/Protoforge | Found Prototype Ballistic Gun 33781 | -2/Protoforge | Identified Cep. XC Strikerail 34050 | -2/Protoforge | Spotted EXE-6 34050 | -2/Protoforge | Spotted EXE-6 34063 | -2/Protoforge | Destroyed EXE-6 34064 | -2/Protoforge | Destroyed EXE-6 34093 | -2/Protoforge | Found Exp. Core Analyzer 34096 | -2/Protoforge | Found Prototype Device 34096 | -2/Protoforge | Identified Exp. Kinecellerator 34138 | -2/Protoforge | Spotted Decapitator 34140 | -2/Protoforge | Spotted Decapitator 34225 | -2/Protoforge | UFD initiated attack on Protoforge 34225 | -2/Protoforge | Loaded intel: 3 recycling unit locations 34261 | -2/Protoforge | Scraphulk reinforcements arrived? 34261 | -2/Protoforge | Optimus greeted in Protoforge 34351 | -2/Protoforge | Fabricated A-02 Transporter (x1) 34394 | -2/Protoforge | Fabricated A-27 Freighter (x1) 34624 | -2/Protoforge | Found Prototype Launcher 34624 | -2/Protoforge | Identified Cep. Concussive Dispersal Blaster 34643 | -2/Protoforge | Spotted Striker 34644 | -2/Protoforge | Destroyed Striker 34695 | -2/Protoforge | Spotted Striker 34703 | -2/Protoforge | Core integrity fell below 50% 34723 | -2/Protoforge | Spotted Immortal 34751 | -2/Protoforge | Destroyed Striker 34780 | -2/Protoforge | Destroyed Immortal 34830 | -2/Protoforge | Found Prototype Device 34830 | -2/Protoforge | Identified Exp. Cloaking Device 34833 | -2/Protoforge | Found Prototype Device 34833 | -2/Protoforge | Identified Cep. Antimissile System 35010 | -2/Protoforge | Destroyed Executioner 35017 | -2/Protoforge | Spotted Striker 35019 | -2/Protoforge | Destroyed Striker 35087 | -2/Protoforge | Spotted Striker 35088 | -2/Protoforge | Fabricated Heavy Servo Lattice (x2) 35090 | -2/Protoforge | Spotted Striker 35096 | -2/Protoforge | Destroyed Striker 35101 | -2/Protoforge | Destroyed Striker 35174 | -2/Protoforge | Fabricated Adv. System Restoration Module (x2) 35417 | -2/Protoforge | Forge Plexus network access discovered 35453 | -2/Protoforge | Spotted Executioner 35461 | -2/Protoforge | Spotted Executioner 35462 | -2/Protoforge | Destroyed Executioner 35486 | -2/Protoforge | Lost 5 allies 35504 | -2/Protoforge | Spotted Executioner 35506 | -2/Protoforge | Destroyed Executioner 35508 | -2/Protoforge | Spotted Striker 35522 | -2/Protoforge | Spotted Executioner 35530 | -2/Protoforge | Destroyed Executioner 35564 | -2/Protoforge | Spotted Executioner 35565 | -2/Protoforge | Destroyed Executioner 35587 | -2/Protoforge | UFD reported confirmed Drillbomb installation 35616 | -2/Protoforge | Spotted Executioner 35622 | -2/Protoforge | Spotted Executioner 35645 | -2/Protoforge | Destroyed Executioner 35653 | -2/Protoforge | Destroyed Executioner 35688 | -2/Protoforge | Spotted Striker 35690 | -2/Protoforge | Spotted Striker 35691 | -2/Protoforge | Spotted Striker 35691 | -2/Protoforge | Spotted Striker 35693 | -2/Protoforge | Destroyed Striker 35703 | -2/Protoforge | Destroyed Striker 35706 | -2/Protoforge | Destroyed Striker 35708 | -2/Protoforge | Destroyed Striker 35732 | -2/Protoforge | Spotted Executioner 35733 | -2/Protoforge | Spotted Striker 35754 | -2/Protoforge | Destroyed Striker 35774 | -2/Protoforge | Destroyed Executioner 35785 | -2/Protoforge | Spotted Striker 35786 | -2/Protoforge | Spotted Striker 35788 | -2/Protoforge | Destroyed Striker 35801 | -2/Protoforge | Spotted Executioner 35803 | -2/Protoforge | Spotted Striker 35809 | -2/Protoforge | Destroyed 21 combat bots 35811 | -2/Protoforge | Spotted Striker 35815 | -2/Protoforge | Spotted Striker 35830 | -2/Protoforge | Destroyed Striker 35832 | -2/Protoforge | Destroyed Executioner 35870 | -2/Protoforge | Destroyed 9 combat bots 35921 | -2/Protoforge | Spotted Striker 35923 | -2/Protoforge | Spotted Executioner 35935 | -2/Protoforge | Spotted Executioner 35936 | -2/Protoforge | Destroyed Striker 35938 | -2/Protoforge | Destroyed Executioner 35947 | -2/Protoforge | Spotted Executioner 35951 | -2/Protoforge | Spotted Executioner 35952 | -2/Protoforge | UFD reported confirmed Drillbomb installation 35969 | -2/Protoforge | Lost 4 allies 35976 | -2/Protoforge | Destroyed Executioner 35997 | -2/Protoforge | Spotted Executioner 35999 | -2/Protoforge | Spotted Executioner 36000 | -2/Protoforge | Spotted Executioner 36003 | -2/Protoforge | Destroyed 13 combat bots 36005 | -2/Protoforge | Spotted Executioner 36013 | -2/Protoforge | Destroyed Executioner 36019 | -2/Protoforge | UFD reported confirmed Drillbomb installation 36021 | -2/Protoforge | Destroyed Executioner 36024 | -2/Protoforge | Spotted Executioner 36026 | -2/Protoforge | Upgraded with Power slot (x1) 36028 | -2/Protoforge | Spotted Executioner 36049 | -2/Protoforge | Core integrity fell below 20% 36050 | -2/Protoforge | Warped through subspace 36054 | -2/Protoforge | Lost 4 allies 36101 | -2/Protoforge | UFD reported confirmed Drillbomb installation 36209 | -2/Protoforge | Spotted Striker 36217 | -2/Protoforge | Destroyed Striker 36254 | -2/Protoforge | Found Exp. Core Analyzer 36319 | -2/Protoforge | Spotted Striker 36321 | -2/Protoforge | Spotted Executioner 36326 | -2/Protoforge | Destroyed Striker 36328 | -2/Protoforge | Spotted Executioner 36331 | -2/Protoforge | Spotted Executioner 36357 | -2/Protoforge | Destroyed Executioner 36358 | -2/Protoforge | Destroyed Executioner 36414 | -2/Protoforge | Lost 13 allies 36459 | -2/Protoforge | Spotted Striker 36500 | -2/Protoforge | Destroyed Striker 36519 | -2/Protoforge | Lost 6 allies 36579 | -2/Protoforge | Lost 4 allies 36600 | -2/Protoforge | Spotted Striker 36601 | -2/Protoforge | Spotted Striker 36609 | -2/Protoforge | Destroyed Striker 36611 | -2/Protoforge | Destroyed Striker 36635 | -2/Protoforge | Lost 4 allies 36640 | -2/Protoforge | Destroyed by Y-72 Warden with Quantum Rifle Last Messages --------------- 36500_ Slug penetrates 02F35-K. 36511_ M-36 Artificer crushed by 02F39-K. 36511_ M-36 Artificer destroyed. 36568_ Acquired 10 matter. 36592_ 0bP_NET: Lugger 294 inbound, all units not involved in other operations escort to target. 36598_ P-80 Master hacks 02FCV-D, rebooting. 36604_ 02FCV-D destroyed. 36605_ 0bP_NET: Lugger 445 inbound, all units not involved in other operations escort to target. 36607_ Destroyed Exp. Reaction Control System. 36607_ Slug penetrates Striker. 36607_ Destroyed Lgt. Quantum Reactor. 36607_ Slug penetrates Striker. 36609_ Striker destroyed. 36609_ Slug penetrates Striker. 36610_ System corrupted: Energy discharge (-252). 36611_ Striker destroyed. 36611_ Slug penetrates Wall. 36637_ Slug penetrates Y-72 Warden. Map ----- +----------------------------------------------------+ | "/%!=[ # ##### = % ############### | | = !%/=%[! " ##### " ############### | | *%%* + ##### ############### | | ! [ # ###### ################# | | ####%## # ###### / # ############### | | ######## ## ####### %## ############### | | ?????### ##########"#########!## ############### | | ??????## # "#########%## ############### | | ??????## + """ ##########!## ############### | | ??????## # "" " ##########%## ############### | | ######## # " " ##########%## ############### | | ######## # """ ##########=## ############### | | # # "" " ########## ################## | | # # " " " ####?#####%# ######### | | " # ###?######%# ######### | | + ##########"######### # """" ######### | | "" "" # ###########;###### # """" ######### | | "" T" # % + """" ######### | | "" "" # ; """" ######### | | # """ """ """ """ """ ; ######### | | ######## # ""T"" ####?#### | | #######" """ """ """ """ """ # """"" ######### | | ##????#" s #################? | | ######## """ """ """ """ """ ##############?### | | ########E ###########?###### | | ??????? s @ ###?##########?### | | #########+###########Y;;;##############?#########? | | ######??????? ##### ################?##?##### | | ##??##????? ?##### """ ######################?# | | ##??##????????##### "R ###############?###?#??## | | ##??##????????##### """ ######??#?####?##?######? | | ##??##?????????? ?# "" #####?################??? | | ##??##????????##### ###?######?##?####?##??## | | ##??##????????#############?########?########?##?? | | ##??##????????########################?###????#??? | | ##??##????????##???####?#?###?###?#######?#???###? | | ##??############??#?#######?##?###?#?##?###???#??# | | ????############??????#?###?##?#?#??#?#???##?#?#?? | | ?????????????????????#???#####?##??#??###?##????#? | | | | | | | | | | | | | | | | | | | | | | | +----------------------------------------------------+ Best States ------------- Heat Dissipation 169 Coolant Potential 80 Energy Generation 103 Energy Capacity 1550 Matter Stores 375 Matter Capacity 600 Sight Range 17 Robot Scan Range 20 Terrain Scan Range 24 Terrain Scan Density 310 Jamming Range 22 Additional Mass Support 12 Armor Coverage 1200 Resistance: KI 35 Resistance: TH 65 Resistance: EX 35 Resistance: EM 100 Resistance: I 35 Resistance: S 35 Resistance: P 35 Utility Shielding 15 Weapon Cycling 25 Phase Shifting 20 Evasion (%) 70 Targeting Accuracy 12 Core Analysis 12 Recoil Reduction 4 Particle Charging 20 Salvage Targeting 8 Offensive Hacking 52 Defensive Hacking 20 Authchip Count 1 Trap Extractor Capacity 4 Item Schematics ----------------- Imp. Flight Unit | -9/Materials | Scanalyzed Trap Extractor | -9/Materials | Hacked Energy Filter | -9/Storage | Hacked Carbon-fiber Leg | -9/Storage | Hacked Axe | -9/Storage | Hacked VSS Leg | -9/Recycling | Hacked Autogun | -9/Recycling | Hacked Antimatter Reactor | -6/Factory | Hacked Hvy. Disruptor Cannon | -6/Factory | Hacked CPS Tube | -6/Factory | Scanalyzed Cld. Ion Engine | -6/Factory | Scanalyzed Cmb. Gravmag System | -6/Factory | Hacked Adv. Reaction Control System | -6/Factory | Hacked Centrium Heavy Armor Plating | -6/Factory | Scanalyzed Cld. Antigrav System | -6/Factory | Scanalyzed Nanosword | -6/Factory | Scanalyzed Hyb. Fission Core | -6/Factory | Hacked Imp. Utility Shielding | -6/Factory | Hacked Powered Armor | -6/Factory | Hacked Structural Scanner | -6/Factory | Hacked Com. Particle Reactor | -6/Factory | Scanalyzed Point Defense System | -6/Zion | Archive Hvy. Machine Gun | -6/Zion | Archive Hvy. Gauss Cannon | -6/Zion | Archive Phase Gun | -6/Zion | Archive Hvy. Pick | -6/Zion | Archive Imp. Focal Shield | -6/Zion | Archive Lgt. Angular Momentum Engine | -6/Zion | Archive Hvy. Shock Bomb Launcher | -6/Zion | Archive Stasis Canceller | -6/Zion | Archive Arm. Medium Treads | -6/Zion | Archive Adv. Heat Sink | -6/Zion | Archive Lance | -6/Zion | Archive Phase Shifter | -6/Zion | Archive Adv. Sensor Array | -6/Zion | Archive Adv. Cooling System | -6/Zion | Archive Riot Gun | -6/Zion | Free Hvy. Beamcaster | -6/Zion | Free Phasing Sabre | -6/Zion | Free Adv. Recoil Stabilizer | -5/Factory | Hacked Exp. Cooling System | -5/Factory | Scanalyzed Lrn. Tractor Beam | -5/Factory | Hacked Ovr. Beamcaster | -5/Factory | Scanalyzed Imp. Weapon Cycler | -5/Factory | Scanalyzed Adv. Heavy Treads | -5/Factory | Hacked Assault Drone Bay | -5/Zhirov | Free Exp. Heat Sink | -5/Zhirov | Free Exp. Optical Array | -5/Zhirov | Free Imp. Arc Thrower | -5/Zhirov | Free Ovr. Antimatter Reactor | -4/Factory | Scanalyzed Ovr. Phase Cannon | -4/Factory | Scanalyzed Graviton Cannon | -4/Factory | Scanalyzed Ovr. Bore Cannon | -4/Factory | Scanalyzed Lrn. Terrain Scanner | -4/Factory | Hacked Hvy. Neutron Cannon | -4/Factory | Hacked Exp. Utility Shielding | -4/Factory | Hacked Imp. Remote Force Field | -4/Factory | Hacked Adv. System Restoration Module | -4/Factory | Hacked Exp. Signal Interpreter | -4/Extension | Hacked Quantum Reactor | -4/Extension | Hacked Adv. Force Field | -4/Hub_04(d) | Hacked Adv. Heavy Siege Treads | -4/Hub_04(d) | Hacked Shield Leg | -4/Hub_04(d) | Hacked Imp. Thunder Leg | -4/Hub_04(d) | Hacked Hellfire Missile Launcher | -3/Research | Scanalyzed Core Analyzer | -3/Research | Hacked Rnf. Quantum Reactor | -3/Research | Hacked Com. HERF Cannon | -3/Research | Hacked Adv. Weapon Cycler | -3/Testing | Hacked Exp. Transmission Jammer | -3/Testing | Hacked Ovr. Nova Cannon | -2/Research | Scanalyzed Exp. Matter Compressor | -2/Research | Scanalyzed Exp. Weapon Cycler | -2/Quarantine | Hacked Heavy Servo Lattice | -2/Protoforge | Hacked Robot Schematics ------------------ B-36 Bruiser | -9/Recycling | Hacked A-02 Transporter | -9/Recycling | Hacked M-28 Smith | -6/Factory | Hacked R-06 Scavenger | -6/Zion | Archive O-24 Administrator | -6/Zion | Archive K-01 Serf | -6/Zion | Archive G-73 Enforcer | -6/Zion | Archive Fabricated ------------ Cmb. Gravmag System | x2 | -6/Factory M-28 Smith | x1 | -6/Factory Hyb. Fission Core | x2 | -6/Factory Cld. Antigrav System | x1 | -6/Factory X-72 Disruptor | x2 | -5/Factory | Preloaded Com. Particle Reactor | x1 | -5/Factory Ovr. Beamcaster | x1 | -5/Factory Ovr. Beamcaster | x1 | -5/Factory Exp. Cooling System | x1 | -5/Factory CPS Tube | x1 | -5/Factory Ovr. Phase Cannon | x1 | -4/Factory Graviton Cannon | x1 | -4/Factory Adv. System Restoration Module | x2 | -4/Factory Exp. Signal Interpreter | x1 | -3/Research Core Analyzer | x2 | -3/Research Adv. Weapon Cycler | x2 | -2/Research Exp. Transmission Jammer | x1 | -2/Research Adv. Weapon Cycler | x2 | -2/Research CPS Tube | x1 | -2/Research CPS Tube | x1 | -2/Research A-02 Transporter | x1 | -2/Protoforge | Preloaded A-27 Freighter | x1 | -2/Protoforge | Preloaded Heavy Servo Lattice | x2 | -2/Protoforge Adv. System Restoration Module | x2 | -2/Protoforge Repaired ---------- Cld. Ion Engine | 99% | -6/Factory | Broken Cld. Antigrav System | 99% | -6/Factory | Broken Nanosword | 99% | -6/Factory | Broken Exp. Cooling System | 99% | -5/Factory | Broken Alien Tech Used ----------------- Core Expander Integrated Reactor Matter Drive Sigix Terminator Subatomic Replicator Supercharged Sigix Terminator Core Stripper Transdimensional Reconstructor Achievements -------------- None Challenges ------------ None RPGLIKE | -11 -10 -10 -9 -9 -9 -9 -6 -6 -6 -6 -5 -5 -5 -5 -5 -5 -5 -4 -4 -4 -4 -4 -4 -4 -4 -3 -3 -3 -2 -2 -2 --------- Run | Yrd Mat Min Mat Sto Rec Scr Fac Low Low Zio Pro Fac Was Fac Upp Upp Zhi Pro Fac Was Fac Ext Cet Arc Hub Res Tes Gar Res Qua Frg Levels Raised 33 | . . 1 4 2 1 . 8 . 1 . 2 3 . 1 . . . 1 1 . 1 . 1 . . 1 1 . 3 . 1 XP Earned 56796 | 6000 850 650 6523 3340 1515 437 10719 934 1107 316 2529 4199 54 1928 406 324 105 571 2338 46 1113 383 267 113 737 1624 821 764 3475 749 1859 XP Spent 55390 | 5800 . . 7420 2760 . 1400 11800 . . . 2600 6500 . . 1750 . . . . . 3500 . . . . 4210 . . 6230 . 1420 Upgrades 74 | 21 . . 10 9 . 1 12 . . . 1 4 . . 1 . . . . . 1 . . . . 6 . . 3 . 5 Power Slot 2 | . . . . 1 . . . . . . . . . . . . . . . . . . . . . . . . . . 1 Propulsion Slot 3 | 1 . . 2 . . . . . . . . . . . . . . . . . . . . . . . . . . . . Utility Slot 13 | 1 . . 2 . . 1 3 . . . 1 2 . . . . . . . . 1 . . . . 1 . . 1 . . Weapon Slot 3 | . . . 1 2 . . . . . . . . . . . . . . . . . . . . . . . . . . . Core Integrity 11 | . . . . 4 . . . . . . . . . . . . . . . . . . . . . 4 . . . . 3 Heat Dissipation 9 | . . . 2 2 . . 3 . . . . 2 . . . . . . . . . . . . . . . . . . . Mass Support 3 | 1 . . . . . . 2 . . . . . . . . . . . . . . . . . . . . . . . . Inventory Capacity 8 | 2 . . 3 . . . 1 . . . . . . . 1 . . . . . . . . . . . . . 1 . . Sight Range 1 | 1 . . . . . . . . . . . . . . . . . . . . . . . . . . . . . . . Sensor Range 10 | 8 . . . . . . 1 . . . . . . . . . . . . . . . . . . . . . . . 1 Terrain Scan Density 3 | 1 . . . . . . . . . . . . . . . . . . . . . . . . . 1 . . 1 . . Hack Attack % 4 | 4 . . . . . . . . . . . . . . . . . . . . . . . . . . . . . . . Hack Defense % 4 | 2 . . . . . . 2 . . . . . . . . . . . . . . . . . . . . . . . . Protomatter Created 17787 | . 139 . 342 439 56 . 650 207 368 . 493 1762 198 963 139 64 75 74 1464 484 1394 566 73 95 490 771 386 630 1868 569 3028 Integrity Restored 17989 | . 290 . 573 257 71 167 1016 200 115 . 163 2416 116 1428 234 212 29 . 1910 86 1181 252 75 22 193 472 387 444 1267 430 3983 Core 10659 | . 178 . 355 140 45 . 602 44 80 . 85 1474 . 917 87 150 . . 1138 55 778 154 45 16 125 294 227 274 706 269 2421 Parts 7330 | . 112 . 218 117 26 167 414 156 35 . 78 942 116 511 147 62 29 . 772 31 403 98 30 6 68 178 160 170 561 161 1562 Protomatter Decayed 23589 | . . . 33 177 83 . 592 125 245 . 352 1207 151 829 195 21 65 . 625 97 883 500 129 87 642 2760 250 438 1203 326 11574 Game ------ Seed SwarmThermalMediator Manual? 0 Play Time 08:38:45 Cumulative 697.2 hours Start 2025.05.12 @ 22:02:06 End 2025.05.13 @ 20:39:29 Sessions 3 Manual Loads 0 Difficulty Explorer Special Mode Winter2019/RPGLIKE Game No. 274 Rogue 268 Adventurer 4 Explorer 2 Win Type - Total 10 Types 6/1/1/1/0/1/0/0/0/0 Lore% 94 Gallery% 89 Achievement% 87 Wizard Run 0 Options --------- Layout 0 ASCII 0 Keyboard 0 Movement Numpad Keybinds 0 Fullscreen 2 Font 18/CogNarrow Map View 76x50 Zoom Use 0% Tactical HUD 1 Map Filters NONE Filters NONE Steam 1 RUN: 04d59d0a-0019-4f3c-9819-8907200f7017